Workbook

Sheet Stavební rozpočet
A1: Stavební rozpočet
A2: Název stavby: | D2: Cyklostezka W Krásné Pole | E2: Doba výstavby: | I2: Objednatel:
A4: Druh stavby: | E4: Začátek výstavby: | I4: Projektant:
A6: Lokalita: | D6: úsek Nová kolonie - Zauliční | E6: Konec výstavby: | I6: Zhotovitel:
A8: JKSO: | E8: Zpracováno dne: | G8: 2013-01-21 | I8: Zpracoval:
G10: Jednot. | H10: Náklady (Kč) | K10: Hmotnost (t)
A11: Č | B11: Objekt | C11: Kód | D11: Zkrácený popis | E11: M.j. | F11: Množství | G11: cena (Kč) | H11: Dodávka | I11: Montáž | J11: Celkem | K11: Jednot. | L11: Celkem | P11: Přesuny | Q11: Typ skupiny | R11: HSV mat | S11: HSV prac | T11: PSV mat | U11: PSV prac | V11: Mont mat | W11: Mont prac | X11: Ostatní mat.
D13: Ul. Hájkovická
C14: 11 | D14: Přípravné a přidružené práce | H14: =SUM(H15:H22) -> 0 | I14: =SUM(I15:I22) -> 81815 | J14: =H14+I14 -> 81815 | L14: =SUM(L15:L22) -> 183.201 | P14: =IF(Q14="PR",J14,SUM(O15:O22)) -> 0 | Q14: HS | R14: =IF(Q14="HS",H14,0) -> 0 | S14: =IF(Q14="HS",I14-P14,0) -> 81815 | T14: =IF(Q14="PS",H14,0) -> 0 | U14: =IF(Q14="PS",I14-P14,0) -> 0 | V14: =IF(Q14="MP",H14,0) -> 0 | W14: =IF(Q14="MP",I14-P14,0) -> 0 | X14: =IF(Q14="OM",H14,0) -> 0 | AI14: =SUM(Z15:Z22) -> 0 | AJ14: =SUM(AA15:AA22) -> 0 | AK14: =SUM(AB15:AB22) -> 81815
A15: 1 | C15: 113151314R00 | D15: Frézování krytu nad 500 m2, s překážkami, tl.5 cm | E15: m2 | F15: 870 | G15: 75 | H15: =ROUND(F15*AE15,2) -> 0 | I15: =J15-H15 -> 65250 | J15: =ROUND(F15*G15,2) -> 65250 | K15: 0.128 | L15: =F15*K15 -> 111.36 | N15: 1 | O15: =IF(N15="5",I15,0) -> 0 | Z15: =IF(AD15=0,J15,0) -> 0 | AA15: =IF(AD15=14,J15,0) -> 0 | AB15: =IF(AD15=20,J15,0) -> 65250 | AD15: 20 | AE15: =G15*0 -> 0 | AF15: =G15*(1-0) -> 75
A16: 2 | C16: 113107141R00 | D16: Odstranění podkladu pl. do 200 m2, živice tl. 5 cm | E16: m2 | F16: 55 | G16: 50 | H16: 0 | I16: 2750 | J16: 2750 | K16: 0.098 | L16: 5.39 | N16: 1 | O16: 0 | Z16: 0 | AA16: 0 | AB16: 2750 | AD16: 20 | AE16: 0 | AF16: 50
A17: 3 | C17: 113107123R00 | D17: Odstranění podkladu pl. 200 m2,kam.drcené tl.30 cm | E17: m2 | F17: 113 | G17: 100 | H17: 0 | I17: 11300 | J17: 11300 | K17: 0.4 | L17: 45.2 | N17: 1 | O17: 0 | Z17: 0 | AA17: 0 | AB17: 11300 | AD17: 20 | AE17: 0 | AF17: 100
A18: 4 | C18: 113106121R00 | D18: Rozebrání dlažeb z betonových dlaždic na sucho - zatravňovací dlažba | E18: m2 | F18: 9 | G18: 15 | H18: 0 | I18: 135 | J18: 135 | K18: 0.138 | L18: 1.242 | N18: 1 | O18: 0 | Z18: 0 | AA18: 0 | AB18: 135 | AD18: 20 | AE18: 0 | AF18: 15
A19: 5 | C19: 113106121R00 | D19: Rozebrání dlažeb z betonových dlaždic na sucho | E19: m2 | F19: 84 | G19: 15 | H19: 0 | I19: 1260 | J19: 1260 | K19: 0.138 | L19: 11.592 | N19: 1 | O19: 0 | Z19: 0 | AA19: 0 | AB19: 1260 | AD19: 20 | AE19: 0 | AF19: 15
A20: 6 | C20: 113106222R00 | D20: Rozebrání dlažeb z drobných kostek v živici | E20: m2 | F20: 4 | G20: 15 | H20: 0 | I20: 60 | J20: 60 | K20: 0.288 | L20: 1.152 | N20: 1 | O20: 0 | Z20: 0 | AA20: 0 | AB20: 60 | AD20: 20 | AE20: 0 | AF20: 15
A21: 7 | C21: 113202111R00 | D21: Vytrhání obrub z krajníků nebo obrubníků stojatých | E21: m | F21: 39 | G21: 20 | H21: 0 | I21: 780 | J21: 780 | K21: 0.145 | L21: 5.655 | N21: 1 | O21: 0 | Z21: 0 | AA21: 0 | AB21: 780 | AD21: 20 | AE21: 0 | AF21: 20
A22: 8 | C22: 113203111R00 | D22: Vytrhání obrub z dlažebních kostek | E22: m | F22: 14 | G22: 20 | H22: 0 | I22: 280 | J22: 280 | K22: 0.115 | L22: 1.61 | N22: 1 | O22: 0 | Z22: 0 | AA22: 0 | AB22: 280 | AD22: 20 | AE22: 0 | AF22: 20
C23: 12 | D23: Odkopávky a prokopávky | H23: =SUM(H24:H27) -> 0 | I23: =SUM(I24:I27) -> 14072.5 | J23: =H23+I23 -> 14072.5 | L23: =SUM(L24:L27) -> 0 | P23: =IF(Q23="PR",J23,SUM(O24:O27)) -> 0 | Q23: HS | R23: =IF(Q23="HS",H23,0) -> 0 | S23: =IF(Q23="HS",I23-P23,0) -> 14072.5 | T23: =IF(Q23="PS",H23,0) -> 0 | U23: =IF(Q23="PS",I23-P23,0) -> 0 | V23: =IF(Q23="MP",H23,0) -> 0 | W23: =IF(Q23="MP",I23-P23,0) -> 0 | X23: =IF(Q23="OM",H23,0) -> 0 | AI23: =SUM(Z24:Z27) -> 0 | AJ23: =SUM(AA24:AA27) -> 0 | AK23: =SUM(AB24:AB27) -> 14072.5
A24: 9 | C24: 121101101R00 | D24: Sejmutí ornice s přemístěním do 50 m | E24: m3 | F24: 5 | G24: 32 | H24: =ROUND(F24*AE24,2) -> 0 | I24: =J24-H24 -> 160 | J24: =ROUND(F24*G24,2) -> 160 | K24: 0 | L24: =F24*K24 -> 0 | N24: 1 | O24: =IF(N24="5",I24,0) -> 0 | Z24: =IF(AD24=0,J24,0) -> 0 | AA24: =IF(AD24=14,J24,0) -> 0 | AB24: =IF(AD24=20,J24,0) -> 160 | AD24: 20 | AE24: =G24*0 -> 0 | AF24: =G24*(1-0) -> 32
A25: 10 | C25: 122201101R00 | D25: Odkopávky nezapažené v hor. 3 do 100 m3 | E25: m3 | F25: 105 | G25: 80 | H25: =ROUND(F25*AE25,2) -> 0 | I25: =J25-H25 -> 8400 | J25: =ROUND(F25*G25,2) -> 8400 | K25: 0 | L25: =F25*K25 -> 0 | N25: 1 | O25: =IF(N25="5",I25,0) -> 0 | Z25: =IF(AD25=0,J25,0) -> 0 | AA25: =IF(AD25=14,J25,0) -> 0 | AB25: =IF(AD25=20,J25,0) -> 8400 | AD25: 20 | AE25: =G25*0 -> 0 | AF25: =G25*(1-0) -> 80
A26: 11 | C26: 122201109R00 | D26: Příplatek za lepivost - odkopávky v hor. 3 | E26: m3 | F26: 52.5 | G26: 5 | H26: =ROUND(F26*AE26,2) -> 0 | I26: =J26-H26 -> 262.5 | J26: =ROUND(F26*G26,2) -> 262.5 | K26: 0 | L26: =F26*K26 -> 0 | N26: 1 | O26: =IF(N26="5",I26,0) -> 0 | Z26: =IF(AD26=0,J26,0) -> 0 | AA26: =IF(AD26=14,J26,0) -> 0 | AB26: =IF(AD26=20,J26,0) -> 262.5 | AD26: 20 | AE26: =G26*0 -> 0 | AF26: =G26*(1-0) -> 5
A27: 12 | C27: 120001101R00 | D27: Příplatek za ztížení vykopávky v blízkosti vedení | E27: m3 | F27: 21 | G27: 250 | H27: =ROUND(F27*AE27,2) -> 0 | I27: =J27-H27 -> 5250 | J27: =ROUND(F27*G27,2) -> 5250 | K27: 0 | L27: =F27*K27 -> 0 | N27: 1 | O27: =IF(N27="5",I27,0) -> 0 | Z27: =IF(AD27=0,J27,0) -> 0 | AA27: =IF(AD27=14,J27,0) -> 0 | AB27: =IF(AD27=20,J27,0) -> 5250 | AD27: 20 | AE27: =G27*0 -> 0 | AF27: =G27*(1-0) -> 250
C28: 16 | D28: Přemístění výkopku | H28: =SUM(H29:H29) -> 0 | I28: =SUM(I29:I29) -> 14700 | J28: =H28+I28 -> 14700 | L28: =SUM(L29:L29) -> 0 | P28: =IF(Q28="PR",J28,SUM(O29:O29)) -> 0 | Q28: HS | R28: =IF(Q28="HS",H28,0) -> 0 | S28: =IF(Q28="HS",I28-P28,0) -> 14700 | T28: =IF(Q28="PS",H28,0) -> 0 | U28: =IF(Q28="PS",I28-P28,0) -> 0 | V28: =IF(Q28="MP",H28,0) -> 0 | W28: =IF(Q28="MP",I28-P28,0) -> 0 | X28: =IF(Q28="OM",H28,0) -> 0 | AI28: =SUM(Z29:Z29) -> 0 | AJ28: =SUM(AA29:AA29) -> 0 | AK28: =SUM(AB29:AB29) -> 14700
A29: 13 | C29: 162701105R00 | D29: Vodorovné přemístění výkopku z hor.1-4 do 10000 m | E29: m3 | F29: 98 | G29: 150 | H29: =ROUND(F29*AE29,2) -> 0 | I29: =J29-H29 -> 14700 | J29: =ROUND(F29*G29,2) -> 14700 | K29: 0 | L29: =F29*K29 -> 0 | N29: 1 | O29: =IF(N29="5",I29,0) -> 0 | Z29: =IF(AD29=0,J29,0) -> 0 | AA29: =IF(AD29=14,J29,0) -> 0 | AB29: =IF(AD29=20,J29,0) -> 14700 | AD29: 20 | AE29: =G29*0 -> 0 | AF29: =G29*(1-0) -> 150
C30: 17 | D30: Konstrukce ze zemin | H30: =SUM(H31:H31) -> 0 | I30: =SUM(I31:I31) -> 980 | J30: =H30+I30 -> 980 | L30: =SUM(L31:L31) -> 0 | P30: =IF(Q30="PR",J30,SUM(O31:O31)) -> 0 | Q30: HS | R30: =IF(Q30="HS",H30,0) -> 0 | S30: =IF(Q30="HS",I30-P30,0) -> 980 | T30: =IF(Q30="PS",H30,0) -> 0 | U30: =IF(Q30="PS",I30-P30,0) -> 0 | V30: =IF(Q30="MP",H30,0) -> 0 | W30: =IF(Q30="MP",I30-P30,0) -> 0 | X30: =IF(Q30="OM",H30,0) -> 0 | AI30: =SUM(Z31:Z31) -> 0 | AJ30: =SUM(AA31:AA31) -> 0 | AK30: =SUM(AB31:AB31) -> 980
A31: 14 | C31: 171201201R00 | D31: Uložení sypaniny na skl.-modelace na výšku přes 2m | E31: m3 | F31: 98 | G31: 10 | H31: =ROUND(F31*AE31,2) -> 0 | I31: =J31-H31 -> 980 | J31: =ROUND(F31*G31,2) -> 980 | K31: 0 | L31: =F31*K31 -> 0 | N31: 1 | O31: =IF(N31="5",I31,0) -> 0 | Z31: =IF(AD31=0,J31,0) -> 0 | AA31: =IF(AD31=14,J31,0) -> 0 | AB31: =IF(AD31=20,J31,0) -> 980 | AD31: 20 | AE31: =G31*0 -> 0 | AF31: =G31*(1-0) -> 10
C32: 171VD | D32: 17 konstrukce ze zemin | H32: =SUM(H33:H33) -> 0 | I32: =SUM(I33:I33) -> 11760 | J32: =H32+I32 -> 11760 | L32: =SUM(L33:L33) -> 0 | P32: =IF(Q32="PR",J32,SUM(O33:O33)) -> 0 | Q32: HS | R32: =IF(Q32="HS",H32,0) -> 0 | S32: =IF(Q32="HS",I32-P32,0) -> 11760 | T32: =IF(Q32="PS",H32,0) -> 0 | U32: =IF(Q32="PS",I32-P32,0) -> 0 | V32: =IF(Q32="MP",H32,0) -> 0 | W32: =IF(Q32="MP",I32-P32,0) -> 0 | X32: =IF(Q32="OM",H32,0) -> 0 | AI32: =SUM(Z33:Z33) -> 0 | AJ32: =SUM(AA33:AA33) -> 0 | AK32: =SUM(AB33:AB33) -> 11760
A33: 15 | C33: 171201299VD | D33: poplatek za uložení zeminy na skládku | E33: m3 | F33: 98 | G33: 120 | H33: =ROUND(F33*AE33,2) -> 0 | I33: =J33-H33 -> 11760 | J33: =ROUND(F33*G33,2) -> 11760 | K33: 0 | L33: =F33*K33 -> 0 | N33: 1 | O33: =IF(N33="5",I33,0) -> 0 | Z33: =IF(AD33=0,J33,0) -> 0 | AA33: =IF(AD33=14,J33,0) -> 0 | AB33: =IF(AD33=20,J33,0) -> 11760 | AD33: 20 | AE33: =G33*0 -> 0 | AF33: =G33*(1-0) -> 120
C34: 18 | D34: Povrchové úpravy terénu | H34: =SUM(H35:H37) -> 161.77 | I34: =SUM(I35:I37) -> 12578.23 | J34: =H34+I34 -> 12740 | L34: =SUM(L35:L37) -> 0 | P34: =IF(Q34="PR",J34,SUM(O35:O37)) -> 0 | Q34: HS | R34: =IF(Q34="HS",H34,0) -> 161.77 | S34: =IF(Q34="HS",I34-P34,0) -> 12578.23 | T34: =IF(Q34="PS",H34,0) -> 0 | U34: =IF(Q34="PS",I34-P34,0) -> 0 | V34: =IF(Q34="MP",H34,0) -> 0 | W34: =IF(Q34="MP",I34-P34,0) -> 0 | X34: =IF(Q34="OM",H34,0) -> 0 | AI34: =SUM(Z35:Z37) -> 0 | AJ34: =SUM(AA35:AA37) -> 0 | AK34: =SUM(AB35:AB37) -> 12740
A35: 16 | C35: 181101102R00 | D35: Úprava pláně v zářezech v hor. 1-4, se zhutněním | E35: m2 | F35: 746 | G35: 10 | H35: =ROUND(F35*AE35,2) -> 0 | I35: =J35-H35 -> 7460 | J35: =ROUND(F35*G35,2) -> 7460 | K35: 0 | L35: =F35*K35 -> 0 | N35: 1 | O35: =IF(N35="5",I35,0) -> 0 | Z35: =IF(AD35=0,J35,0) -> 0 | AA35: =IF(AD35=14,J35,0) -> 0 | AB35: =IF(AD35=20,J35,0) -> 7460 | AD35: 20 | AE35: =G35*0 -> 0 | AF35: =G35*(1-0) -> 10
A36: 17 | C36: 180402111R00 | D36: Založení trávníku parkového výsevem v rovině | E36: m2 | F36: 120 | G36: 15 | H36: =ROUND(F36*AE36,2) -> 161.77 | I36: =J36-H36 -> 1638.23 | J36: =ROUND(F36*G36,2) -> 1800 | K36: 0 | L36: =F36*K36 -> 0 | N36: 1 | O36: =IF(N36="5",I36,0) -> 0 | Z36: =IF(AD36=0,J36,0) -> 0 | AA36: =IF(AD36=14,J36,0) -> 0 | AB36: =IF(AD36=20,J36,0) -> 1800 | AD36: 20 | AE36: =G36*0.0898725687458082 -> 1.348088531 | AF36: =G36*(1-0.0898725687458082) -> 13.65191147
A37: 18 | C37: 181301101R00 | D37: Rozprostření ornice, rovina, tl. do 10 cm do 500m2 | E37: m2 | F37: 120 | G37: 29 | H37: =ROUND(F37*AE37,2) -> 0 | I37: =J37-H37 -> 3480 | J37: =ROUND(F37*G37,2) -> 3480 | K37: 0 | L37: =F37*K37 -> 0 | N37: 1 | O37: =IF(N37="5",I37,0) -> 0 | Z37: =IF(AD37=0,J37,0) -> 0 | AA37: =IF(AD37=14,J37,0) -> 0 | AB37: =IF(AD37=20,J37,0) -> 3480 | AD37: 20 | AE37: =G37*0 -> 0 | AF37: =G37*(1-0) -> 29
C38: 21 | D38: Úprava podloží a základové spáry | H38: =SUM(H39:H39) -> 23935.16 | I38: =SUM(I39:I39) -> 5514.84 | J38: =H38+I38 -> 29450 | L38: =SUM(L39:L39) -> 50.008 | P38: =IF(Q38="PR",J38,SUM(O39:O39)) -> 0 | Q38: HS | R38: =IF(Q38="HS",H38,0) -> 23935.16 | S38: =IF(Q38="HS",I38-P38,0) -> 5514.84 | T38: =IF(Q38="PS",H38,0) -> 0 | U38: =IF(Q38="PS",I38-P38,0) -> 0 | V38: =IF(Q38="MP",H38,0) -> 0 | W38: =IF(Q38="MP",I38-P38,0) -> 0 | X38: =IF(Q38="OM",H38,0) -> 0 | AI38: =SUM(Z39:Z39) -> 0 | AJ38: =SUM(AA39:AA39) -> 0 | AK38: =SUM(AB39:AB39) -> 29450
A39: 19 | C39: 212752114R00 | D39: Trativody z drenážních trubek, lože, DN 210 mm | E39: m | F39: 190 | G39: 155 | H39: =ROUND(F39*AE39,2) -> 23935.16 | I39: =J39-H39 -> 5514.84 | J39: =ROUND(F39*G39,2) -> 29450 | K39: 0.2632 | L39: =F39*K39 -> 50.008 | N39: 1 | O39: =IF(N39="5",I39,0) -> 0 | Z39: =IF(AD39=0,J39,0) -> 0 | AA39: =IF(AD39=14,J39,0) -> 0 | AB39: =IF(AD39=20,J39,0) -> 29450 | AD39: 20 | AE39: =G39*0.812738740339345 -> 125.9745048 | AF39: =G39*(1-0.812738740339345) -> 29.02549525
C40: 212VD | D40: 212 - kanalizace | H40: =SUM(H41:H43) -> 1393.94 | I40: =SUM(I41:I43) -> 28786.06 | J40: =H40+I40 -> 30180 | L40: =SUM(L41:L43) -> 0 | P40: =IF(Q40="PR",J40,SUM(O41:O43)) -> 0 | Q40: HS | R40: =IF(Q40="HS",H40,0) -> 1393.94 | S40: =IF(Q40="HS",I40-P40,0) -> 28786.06 | T40: =IF(Q40="PS",H40,0) -> 0 | U40: =IF(Q40="PS",I40-P40,0) -> 0 | V40: =IF(Q40="MP",H40,0) -> 0 | W40: =IF(Q40="MP",I40-P40,0) -> 0 | X40: =IF(Q40="OM",H40,0) -> 0 | AI40: =SUM(Z41:Z43) -> 0 | AJ40: =SUM(AA41:AA43) -> 0 | AK40: =SUM(AB41:AB43) -> 30180
A41: 20 | C41: 212101008VD | D41: Napojení odvodňovacího žlabu do drenáže DN 200 | E41: ks | F41: 8 | G41: 345 | H41: =ROUND(F41*AE41,2) -> 1393.94 | I41: =J41-H41 -> 1366.06 | J41: =ROUND(F41*G41,2) -> 2760 | K41: 0 | L41: =F41*K41 -> 0 | N41: 1 | O41: =IF(N41="5",I41,0) -> 0 | Z41: =IF(AD41=0,J41,0) -> 0 | AA41: =IF(AD41=14,J41,0) -> 0 | AB41: =IF(AD41=20,J41,0) -> 2760 | AD41: 20 | AE41: =G41*0.505050505050505 -> 174.2424242 | AF41: =G41*(1-0.505050505050505) -> 170.7575758
A42: 21 | C42: 212101001VD | D42: zhotovení uliční vpusti, výkopy, D+M vč. koše na bahno, odkalovacího prostoru, sifonu , obetonování | E42: ks | F42: 4 | G42: 4860 | H42: =ROUND(F42*AE42,2) -> 0 | I42: =J42-H42 -> 19440 | J42: =ROUND(F42*G42,2) -> 19440 | K42: 0 | L42: =F42*K42 -> 0 | N42: 1 | O42: =IF(N42="5",I42,0) -> 0 | Z42: =IF(AD42=0,J42,0) -> 0 | AA42: =IF(AD42=14,J42,0) -> 0 | AB42: =IF(AD42=20,J42,0) -> 19440 | AD42: 20 | AE42: =G42*0 -> 0 | AF42: =G42*(1-0) -> 4860
A43: 22 | C43: 212101002VD | D43: přípojka UV PP DN 150 , včetně výkopů, odvozu a uložení zeminy, dodávky mat., zásypu rýhy | E43: m | F43: 12 | G43: 665 | H43: =ROUND(F43*AE43,2) -> 0 | I43: =J43-H43 -> 7980 | J43: =ROUND(F43*G43,2) -> 7980 | K43: 0 | L43: =F43*K43 -> 0 | N43: 1 | O43: =IF(N43="5",I43,0) -> 0 | Z43: =IF(AD43=0,J43,0) -> 0 | AA43: =IF(AD43=14,J43,0) -> 0 | AB43: =IF(AD43=20,J43,0) -> 7980 | AD43: 20 | AE43: =G43*0 -> 0 | AF43: =G43*(1-0) -> 665
C44: 56 | D44: Podkladní vrstvy komunikací a zpevněných ploch | H44: =SUM(H45:H46) -> 43134.29 | I44: =SUM(I45:I46) -> 9240.71 | J44: =H44+I44 -> 52375 | L44: =SUM(L45:L46) -> 189.00682 | P44: =IF(Q44="PR",J44,SUM(O45:O46)) -> 0 | Q44: HS | R44: =IF(Q44="HS",H44,0) -> 43134.29 | S44: =IF(Q44="HS",I44-P44,0) -> 9240.71 | T44: =IF(Q44="PS",H44,0) -> 0 | U44: =IF(Q44="PS",I44-P44,0) -> 0 | V44: =IF(Q44="MP",H44,0) -> 0 | W44: =IF(Q44="MP",I44-P44,0) -> 0 | X44: =IF(Q44="OM",H44,0) -> 0 | AI44: =SUM(Z45:Z46) -> 0 | AJ44: =SUM(AA45:AA46) -> 0 | AK44: =SUM(AB45:AB46) -> 52375
A45: 23 | C45: 564801112R00 | D45: Podklad ze štěrkodrti po zhutnění tloušťky 4 cm - vyrovnání profilu | E45: m2 | F45: 360 | G45: 25 | H45: =ROUND(F45*AE45,2) -> 5303.4 | I45: =J45-H45 -> 3696.6 | J45: =ROUND(F45*G45,2) -> 9000 | K45: 0.08003 | L45: =F45*K45 -> 28.8108 | N45: 1 | O45: =IF(N45="5",I45,0) -> 0 | Z45: =IF(AD45=0,J45,0) -> 0 | AA45: =IF(AD45=14,J45,0) -> 0 | AB45: =IF(AD45=20,J45,0) -> 9000 | AD45: 20 | AE45: =G45*0.589266623904212 -> 14.7316656 | AF45: =G45*(1-0.589266623904212) -> 10.2683344
A46: 24 | C46: 564871111R00 | D46: Podklad ze štěrkodrti po zhutnění tloušťky 25 cm | E46: m2 | F46: 347 | G46: 125 | H46: =ROUND(F46*AE46,2) -> 37830.89 | I46: =J46-H46 -> 5544.11 | J46: =ROUND(F46*G46,2) -> 43375 | K46: 0.46166 | L46: =F46*K46 -> 160.19602 | N46: 1 | O46: =IF(N46="5",I46,0) -> 0 | Z46: =IF(AD46=0,J46,0) -> 0 | AA46: =IF(AD46=14,J46,0) -> 0 | AB46: =IF(AD46=20,J46,0) -> 43375 | AD46: 20 | AE46: =G46*0.872181834913039 -> 109.0227294 | AF46: =G46*(1-0.872181834913039) -> 15.97727064
C47: 59 | D47: Dlažby a předlažby pozemních komunikací a zpevněných ploch | H47: =SUM(H48:H55) -> 95183.1 | I47: =SUM(I48:I55) -> 101120.9 | J47: =H47+I47 -> 196304 | L47: =SUM(L48:L55) -> 71.3983232 | P47: =IF(Q47="PR",J47,SUM(O48:O55)) -> 0 | Q47: HS | R47: =IF(Q47="HS",H47,0) -> 95183.1 | S47: =IF(Q47="HS",I47-P47,0) -> 101120.9 | T47: =IF(Q47="PS",H47,0) -> 0 | U47: =IF(Q47="PS",I47-P47,0) -> 0 | V47: =IF(Q47="MP",H47,0) -> 0 | W47: =IF(Q47="MP",I47-P47,0) -> 0 | X47: =IF(Q47="OM",H47,0) -> 0 | AI47: =SUM(Z48:Z55) -> 0 | AJ47: =SUM(AA48:AA55) -> 0 | AK47: =SUM(AB48:AB55) -> 190864
A48: 25 | C48: 596215021R00 | D48: Kladení zámkové dlažby tl. 6 cm do drtě tl. 4 cm | E48: m2 | F48: 564 | G48: 130 | H48: =ROUND(F48*AE48,2) -> 11756.49 | I48: =J48-H48 -> 61563.51 | J48: =ROUND(F48*G48,2) -> 73320 | K48: 0.0739 | L48: =F48*K48 -> 41.6796 | N48: 1 | O48: =IF(N48="5",I48,0) -> 0 | Z48: =IF(AD48=0,J48,0) -> 0 | AA48: =IF(AD48=14,J48,0) -> 0 | AB48: =IF(AD48=20,J48,0) -> 73320 | AD48: 20 | AE48: =G48*0.160344906664221 -> 20.84483787 | AF48: =G48*(1-0.160344906664221) -> 109.1551621
A49: 26 | C49: 596215040R00 | D49: Kladení zámkové dlažby tl. 8 cm do drtě tl. 4 cm | E49: m2 | F49: 182 | G49: 140 | H49: 3917.24 | I49: 21562.76 | J49: 25480 | K49: 0.0739 | L49: 13.4498 | N49: 1 | O49: 0 | Z49: 0 | AA49: 0 | AB49: 25480 | AD49: 20 | AE49: =G49*0.153737906772208 -> 21.52330695 | AF49: =G49*(1-0.153737906772208) -> 118.4766931
A50: 27 | C50: 597101113R00 | D50: Montáž odvodňovacího žlabu - polymerbeton | E50: m | F50: 44 | G50: 400 | H50: 10489.91 | I50: 7110.09 | J50: 17600 | K50: 0.24147 | L50: 10.62468 | N50: 1 | O50: 0 | Z50: 0 | AA50: 0 | AB50: 17600 | AD50: 20 | AE50: =G50*0.596017385133936 -> 238.4069541 | AF50: =G50*(1-0.596017385133936) -> 161.5930459
A51: 28 | C51: 597091111R00 | D51: Žlab odvodňovací dl. 1000 mm | E51: kus | F51: 40 | G51: 800 | H51: =ROUND(F51*AE51,2) -> 28559.47 | I51: =J51-H51 -> 3440.53 | J51: =ROUND(F51*G51,2) -> 32000 | K51: 0.09733 | L51: 3.8932 | N51: 1 | O51: 0 | Z51: 0 | AA51: 0 | AB51: 32000 | AD51: 20 | AE51: =G51*0.892483551651644 -> 713.9868413 | AF51: =G51*(1-0.892483551651644) -> 86.01315868
A52: 29 | C52: 597091112R00 | D52: Žlab odvodňovací dl. 500 mm | E52: kus | F52: 8 | G52: 680 | H52: =ROUND(F52*AE52,2) -> 0 | I52: 5440 | J52: =ROUND(F52*G52,2) -> 5440 | K52: 0.05086 | L52: =F52*K52 -> 0.40688
A53: 30 | C53: 597091131R00 | D53: Čelo žlabu plné typ 0-20 | E53: kus | F53: 16 | G53: 58 | H53: 907.08 | I53: 20.92 | J53: 928 | K53: 0.00142 | L53: 0.02272 | N53: 1 | O53: 0 | Z53: 0 | AA53: 0 | AB53: 928 | AD53: 20 | AE53: =G53*0.977454221297775 -> 56.69234484 | AF53: =G53*(1-0.977454221297775) -> 1.307655165
A54: 31 | C54: 597091153R00 | D54: Krycí rošt zatížení C 250 dl.500 mm | E54: kus | F54: 88 | G54: 451.2 | H54: 38738.03 | I54: 967.57 | J54: 39705.6 | K54: 0.00305 | L54: 0.2684 | N54: 1 | O54: 0 | Z54: 0 | AA54: 0 | AB54: 39705.6 | AD54: 20 | AE54: =G54*0.975631319220074 -> 440.2048512 | AF54: =G54*(1-0.975631319220074) -> 10.99514877
A55: 32 | C55: 596245041R00 | D55: Kladení zámkové dlažby tl. 8 cm do MC tl. 5 cm | E55: m2 | F55: 7.04 | G55: 260 | H55: 814.88 | I55: 1015.52 | J55: 1830.4 | K55: 0.14958 | L55: 1.0530432 | N55: 1 | O55: 0 | Z55: 0 | AA55: 0 | AB55: 1830.4 | AD55: 20 | AE55: =G55*0.445191425022949 -> 115.7497705 | AF55: =G55*(1-0.445191425022949) -> 144.2502295
C56: 89 | D56: Ostatní konstrukce a práce na trubním vedení | H56: =H57 -> 0 | I56: =I57 -> 9750 | J56: =H56+I56 -> 9750 | L56: =L57 -> 4.7262
A57: 33 | C57: 899431111R00 | D57: Výšková úprava do 20 cm, zvýšení krytu šoupěte | E57: kus | F57: 15 | G57: 650 | H57: =ROUND(F57*AE57,2) -> 0 | I57: =J57-H57 -> 9750 | J57: =ROUND(F57*G57,2) -> 9750 | K57: 0.31508 | L57: =F57*K57 -> 4.7262
C58: 91 | D58: Doplňující konstrukce a práce na pozemních komunikacích a zpevněných plochách | H58: =SUM(H59:H64) -> 31295.97 | I58: =SUM(I59:I64) -> 15284.03 | J58: =H58+I58 -> 46580 | L58: =SUM(L59:L64) -> 39.49354 | P58: =IF(Q58="PR",J58,SUM(O59:O64)) -> 0 | Q58: HS | R58: =IF(Q58="HS",H58,0) -> 31295.97 | S58: =IF(Q58="HS",I58-P58,0) -> 15284.03 | T58: =IF(Q58="PS",H58,0) -> 0 | U58: =IF(Q58="PS",I58-P58,0) -> 0 | V58: =IF(Q58="MP",H58,0) -> 0 | W58: =IF(Q58="MP",I58-P58,0) -> 0 | X58: =IF(Q58="OM",H58,0) -> 0 | AI58: =SUM(Z59:Z64) -> 0 | AJ58: =SUM(AA59:AA64) -> 0 | AK58: =SUM(AB59:AB64) -> 46230
A59: 34 | C59: 919735111R00 | D59: Řezání stávajícího živičného krytu tl. do 5 cm | E59: m | F59: 14 | G59: 40 | H59: =ROUND(F59*AE59,2) -> 310.76 | I59: =J59-H59 -> 249.24 | J59: =ROUND(F59*G59,2) -> 560 | K59: 0 | L59: =F59*K59 -> 0 | N59: 1 | O59: =IF(N59="5",I59,0) -> 0 | Z59: =IF(AD59=0,J59,0) -> 0 | AA59: =IF(AD59=14,J59,0) -> 0 | AB59: =IF(AD59=20,J59,0) -> 560 | AD59: 20 | AE59: =G59*0.55493519441675 -> 22.19740778 | AF59: =G59*(1-0.55493519441675) -> 17.80259222
A60: 35 | C60: 917461111R00 | D60: Osazení stoj.obrubníků, s opěrou, lože z BP 12,5 | E60: m | F60: 14 | G60: 160 | H60: 1520.23 | I60: 719.77 | J60: 2240 | K60: 0.1479 | L60: 2.0706 | N60: 1 | O60: =IF(N60="5",I60,0) -> 0 | Z60: =IF(AD60=0,J60,0) -> 0 | AA60: =IF(AD60=14,J60,0) -> 0 | AB60: =IF(AD60=20,J60,0) -> 2240 | AD60: 20 | AE60: =G60*0.678673554100175 -> 108.5877687 | AF60: =G60*(1-0.678673554100175) -> 51.41223134
A61: 36 | C61: 916261111R00 | D61: Osazení obruby z kostek drobných, s boční opěrou | E61: m | F61: 14 | G61: 95 | H61: 967.38 | I61: 362.62 | J61: 1330 | K61: 0.0942 | L61: 1.3188 | N61: 1 | O61: =IF(N61="5",I61,0) -> 0 | Z61: =IF(AD61=0,J61,0) -> 0 | AA61: =IF(AD61=14,J61,0) -> 0 | AB61: =IF(AD61=20,J61,0) -> 1330 | AD61: 20 | AE61: =G61*0.727350096711799 -> 69.09825919 | AF61: =G61*(1-0.727350096711799) -> 25.90174081
A62: 37 | C62: 917862111R00 | D62: Osazení stojat. obrub. bet. s opěrou,lože z B 12,5 | E62: m | F62: 257 | G62: 160 | H62: 27896.53 | I62: 13223.47 | J62: 41120 | K62: 0.13612 | L62: 34.98284 | N62: 1 | O62: =IF(N62="5",I62,0) -> 0 | Z62: =IF(AD62=0,J62,0) -> 0 | AA62: =IF(AD62=14,J62,0) -> 0 | AB62: =IF(AD62=20,J62,0) -> 41120 | AD62: 20 | AE62: =G62*0.67841762643966 -> 108.5468202 | AF62: =G62*(1-0.67841762643966) -> 51.45317977
A63: 38 | C63: 914431111R00 | D63: Osazení dopravního zrcadla na sloupek nebo konstr. | E63: kus | F63: 1 | G63: 350 | H63: 0 | I63: 350 | J63: 350 | K63: 1.0611 | L63: 1.0611
A64: 39 | C64: 919721211R00 | D64: Dilatační spáry vkládané vyplněné asfalt. zálivkou | E64: m | F64: 14 | G64: 70 | H64: 601.07 | I64: 378.93 | J64: 980 | K64: 0.0043 | L64: 0.0602 | N64: 1 | O64: =IF(N64="5",I64,0) -> 0 | Z64: =IF(AD64=0,J64,0) -> 0 | AA64: =IF(AD64=14,J64,0) -> 0 | AB64: =IF(AD64=20,J64,0) -> 980 | AD64: 20 | AE64: =G64*0.613339662948018 -> 42.93377641 | AF64: =G64*(1-0.613339662948018) -> 27.06622359
C65: 966 | D65: Ostatních stavebních konstrukcí | H65: =SUM(H66:H66) -> 0 | I65: =SUM(I66:I66) -> 3800 | J65: =H65+I65 -> 3800 | L65: =SUM(L66:L66) -> 0 | P65: =IF(Q65="PR",J65,SUM(O66:O66)) -> 0 | Q65: HS | R65: =IF(Q65="HS",H65,0) -> 0 | S65: =IF(Q65="HS",I65-P65,0) -> 3800 | T65: =IF(Q65="PS",H65,0) -> 0 | U65: =IF(Q65="PS",I65-P65,0) -> 0 | V65: =IF(Q65="MP",H65,0) -> 0 | W65: =IF(Q65="MP",I65-P65,0) -> 0 | X65: =IF(Q65="OM",H65,0) -> 0 | AI65: =SUM(Z66:Z66) -> 0 | AJ65: =SUM(AA66:AA66) -> 0 | AK65: =SUM(AB66:AB66) -> 3800
A66: 40 | C66: 966001001VD | D66: Bourání stávající UV, vč. odvozu suti a poplatku za skládku | E66: ks | F66: 4 | G66: 950 | H66: =ROUND(F66*AE66,2) -> 0 | I66: =J66-H66 -> 3800 | J66: =ROUND(F66*G66,2) -> 3800 | K66: 0 | L66: =F66*K66 -> 0 | N66: 1 | O66: =IF(N66="5",I66,0) -> 0 | Z66: =IF(AD66=0,J66,0) -> 0 | AA66: =IF(AD66=14,J66,0) -> 0 | AB66: =IF(AD66=20,J66,0) -> 3800 | AD66: 20 | AE66: =G66*0 -> 0 | AF66: =G66*(1-0) -> 950
C67: 97 | D67: Prorážení otvorů a ostatní bourací práce | H67: =SUM(H68:H70) -> 0 | I67: =SUM(I68:I70) -> 1785.8 | J67: =H67+I67 -> 1785.8 | L67: =SUM(L68:L70) -> 0 | P67: =IF(Q67="PR",J67,SUM(O68:O70)) -> 0 | Q67: HS | R67: =IF(Q67="HS",H67,0) -> 0 | S67: =IF(Q67="HS",I67-P67,0) -> 1785.8 | T67: =IF(Q67="PS",H67,0) -> 0 | U67: =IF(Q67="PS",I67-P67,0) -> 0 | V67: =IF(Q67="MP",H67,0) -> 0 | W67: =IF(Q67="MP",I67-P67,0) -> 0 | X67: =IF(Q67="OM",H67,0) -> 0 | AI67: =SUM(Z68:Z70) -> 0 | AJ67: =SUM(AA68:AA70) -> 0 | AK67: =SUM(AB68:AB70) -> 1785.8
A68: 41 | C68: 979054441R00 | D68: Očištění vybour. dlaždic s výplní kamen. těženým | E68: m2 | F68: 39 | G68: 35 | H68: =ROUND(F68*AE68,2) -> 0 | I68: =J68-H68 -> 1365 | J68: =ROUND(F68*G68,2) -> 1365 | K68: 0 | L68: =F68*K68 -> 0 | N68: 1 | O68: =IF(N68="5",I68,0) -> 0 | Z68: =IF(AD68=0,J68,0) -> 0 | AA68: =IF(AD68=14,J68,0) -> 0 | AB68: =IF(AD68=20,J68,0) -> 1365 | AD68: 20 | AE68: =G68*0 -> 0 | AF68: =G68*(1-0) -> 35
A69: 42 | C69: 979024441R00 | D69: Očištění vybour. obrubníků všech loží a výplní | E69: m | F69: 26 | G69: 15 | H69: =ROUND(F69*AE69,2) -> 0 | I69: =J69-H69 -> 390 | J69: =ROUND(F69*G69,2) -> 390 | K69: 0 | L69: =F69*K69 -> 0 | N69: 1 | O69: =IF(N69="5",I69,0) -> 0 | Z69: =IF(AD69=0,J69,0) -> 0 | AA69: =IF(AD69=14,J69,0) -> 0 | AB69: =IF(AD69=20,J69,0) -> 390 | AD69: 20 | AE69: =G69*0 -> 0 | AF69: =G69*(1-0) -> 15
A70: 43 | C70: 979071122R00 | D70: Očištění vybour.kostek drobných s výplní MC/živicí | E70: m2 | F70: 1.4 | G70: 22 | H70: =ROUND(F70*AE70,2) -> 0 | I70: =J70-H70 -> 30.8 | J70: =ROUND(F70*G70,2) -> 30.8 | K70: 0 | L70: =F70*K70 -> 0 | N70: 1 | O70: =IF(N70="5",I70,0) -> 0 | Z70: =IF(AD70=0,J70,0) -> 0 | AA70: =IF(AD70=14,J70,0) -> 0 | AB70: =IF(AD70=20,J70,0) -> 30.8 | AD70: 20 | AE70: =G70*0 -> 0 | AF70: =G70*(1-0) -> 22
C71: 979VD | D71: 979 - skládka | H71: =SUM(H72:H73) -> 0 | I71: =SUM(I72:I73) -> 21238.75 | J71: =H71+I71 -> 21238.75 | L71: =SUM(L72:L73) -> 0 | P71: =IF(Q71="PR",J71,SUM(O72:O73)) -> 0 | Q71: HS | R71: =IF(Q71="HS",H71,0) -> 0 | S71: =IF(Q71="HS",I71-P71,0) -> 21238.75 | T71: =IF(Q71="PS",H71,0) -> 0 | U71: =IF(Q71="PS",I71-P71,0) -> 0 | V71: =IF(Q71="MP",H71,0) -> 0 | W71: =IF(Q71="MP",I71-P71,0) -> 0 | X71: =IF(Q71="OM",H71,0) -> 0 | AI71: =SUM(Z72:Z73) -> 0 | AJ71: =SUM(AA72:AA73) -> 0 | AK71: =SUM(AB72:AB73) -> 21238.75
A72: 44 | C72: 979089998VD | D72: poplatek za uložení suti na skládku | E72: t | F72: 66.45 | G72: 100 | H72: =ROUND(F72*AE72,2) -> 0 | I72: =J72-H72 -> 6645 | J72: =ROUND(F72*G72,2) -> 6645 | K72: 0 | L72: =F72*K72 -> 0 | N72: 1 | O72: =IF(N72="5",I72,0) -> 0 | Z72: =IF(AD72=0,J72,0) -> 0 | AA72: =IF(AD72=14,J72,0) -> 0 | AB72: =IF(AD72=20,J72,0) -> 6645 | AD72: 20 | AE72: =G72*0 -> 0 | AF72: =G72*(1-0) -> 100
A73: 45 | C73: 979089999VD | D73: Poplatek za uložení živice na skládku | E73: t | F73: 116.75 | G73: 125 | H73: =ROUND(F73*AE73,2) -> 0 | I73: =J73-H73 -> 14593.75 | J73: =ROUND(F73*G73,2) -> 14593.75 | K73: 0 | L73: =F73*K73 -> 0 | N73: 1 | O73: =IF(N73="5",I73,0) -> 0 | Z73: =IF(AD73=0,J73,0) -> 0 | AA73: =IF(AD73=14,J73,0) -> 0 | AB73: =IF(AD73=20,J73,0) -> 14593.75 | AD73: 20 | AE73: =G73*0 -> 0 | AF73: =G73*(1-0) -> 125
C74: 999VD | D74: 999 - různé | H74: =SUM(H75:H75) -> 0 | I74: =SUM(I75:I75) -> 8000 | J74: =H74+I74 -> 8000 | L74: =SUM(L75:L75) -> 0 | P74: =IF(Q74="PR",J74,SUM(#REF!)) ->  | Q74: HS | R74: =IF(Q74="HS",H74,0) -> 0 | S74: =IF(Q74="HS",I74-P74,0) ->  | T74: =IF(Q74="PS",H74,0) -> 0 | U74: =IF(Q74="PS",I74-P74,0) -> 0 | V74: =IF(Q74="MP",H74,0) -> 0 | W74: =IF(Q74="MP",I74-P74,0) -> 0 | X74: =IF(Q74="OM",H74,0) -> 0 | AI74: =SUM(#REF!) ->  | AJ74: =SUM(#REF!) ->  | AK74: =SUM(#REF!) -> 
A75: 46 | C75: 999001016VD | D75: D+M silničního zábradlí v 1,1 m, vč. souvisejících prací | E75: m | F75: 5 | G75: 1600 | H75: =ROUND(F75*AE75,2) -> 0 | I75: =J75-H75 -> 8000 | J75: =ROUND(F75*G75,2) -> 8000 | K75: 0 | L75: =F75*K75 -> 0
C76: H22 | D76: Komunikace pozemní a letiště | H76: =SUM(H77:H77) -> 0 | I76: =SUM(I77:I77) -> 9393 | J76: =H76+I76 -> 9393 | L76: =SUM(L77:L77) -> 0 | P76: =IF(Q76="PR",J76,SUM(O77:O77)) -> 9393 | Q76: PR | R76: =IF(Q76="HS",H76,0) -> 0 | S76: =IF(Q76="HS",I76-P76,0) -> 0 | T76: =IF(Q76="PS",H76,0) -> 0 | U76: =IF(Q76="PS",I76-P76,0) -> 0 | V76: =IF(Q76="MP",H76,0) -> 0 | W76: =IF(Q76="MP",I76-P76,0) -> 0 | X76: =IF(Q76="OM",H76,0) -> 0 | AI76: =SUM(Z77:Z77) -> 0 | AJ76: =SUM(AA77:AA77) -> 0 | AK76: =SUM(AB77:AB77) -> 9393
A77: 47 | C77: 998223011R00 | D77: Přesun hmot, pozemní komunikace, kryt dlážděný | E77: t | F77: =L38+L44+L47+L56+L58+L81 -> 469.6499322 | G77: 20 | H77: =ROUND(F77*AE77,2) -> 0 | I77: =J77-H77 -> 9393 | J77: =ROUND(F77*G77,2) -> 9393 | K77: 0 | L77: =F77*K77 -> 0 | N77: 5 | O77: =IF(N77="5",I77,0) -> 9393 | Z77: =IF(AD77=0,J77,0) -> 0 | AA77: =IF(AD77=14,J77,0) -> 0 | AB77: =IF(AD77=20,J77,0) -> 9393 | AD77: 20 | AE77: =G77*0 -> 0 | AF77: =G77*(1-0) -> 20
C78: S | D78: Přesuny sutí | H78: =SUM(H79:H80) -> 0 | I78: =SUM(I79:I80) -> 21617.6 | J78: =H78+I78 -> 21617.6 | L78: =SUM(L79:L80) -> 0 | P78: =IF(Q78="PR",J78,SUM(O79:O80)) -> 21617.6 | Q78: PR | R78: =IF(Q78="HS",H78,0) -> 0 | S78: =IF(Q78="HS",I78-P78,0) -> 0 | T78: =IF(Q78="PS",H78,0) -> 0 | U78: =IF(Q78="PS",I78-P78,0) -> 0 | V78: =IF(Q78="MP",H78,0) -> 0 | W78: =IF(Q78="MP",I78-P78,0) -> 0 | X78: =IF(Q78="OM",H78,0) -> 0 | AI78: =SUM(Z79:Z80) -> 0 | AJ78: =SUM(AA79:AA80) -> 0 | AK78: =SUM(AB79:AB80) -> 21617.6
A79: 48 | C79: 979082213R00 | D79: Vodorovná doprava suti po suchu do 1 km | E79: t | F79: 183.2 | G79: 46 | H79: =ROUND(F79*AE79,2) -> 0 | I79: =J79-H79 -> 8427.2 | J79: =ROUND(F79*G79,2) -> 8427.2 | K79: 0 | L79: =F79*K79 -> 0 | N79: 5 | O79: =IF(N79="5",I79,0) -> 8427.2 | Z79: =IF(AD79=0,J79,0) -> 0 | AA79: =IF(AD79=14,J79,0) -> 0 | AB79: =IF(AD79=20,J79,0) -> 8427.2 | AD79: 20 | AE79: =G79*0 -> 0 | AF79: =G79*(1-0) -> 46
A80: 49 | C80: 979082219R00 | D80: Příplatek za dopravu suti po suchu za další 1 km | E80: t | F80: 1648.8 | G80: 8 | H80: =ROUND(F80*AE80,2) -> 0 | I80: =J80-H80 -> 13190.4 | J80: =ROUND(F80*G80,2) -> 13190.4 | K80: 0 | L80: =F80*K80 -> 0 | N80: 5 | O80: =IF(N80="5",I80,0) -> 13190.4 | Z80: =IF(AD80=0,J80,0) -> 0 | AA80: =IF(AD80=14,J80,0) -> 0 | AB80: =IF(AD80=20,J80,0) -> 13190.4 | AD80: 20 | AE80: =G80*0 -> 0 | AF80: =G80*(1-0) -> 8
D81: Ostatní materiál | H81: =SUM(H82:H89) -> 138504.3 | I81: =SUM(I82:I89) -> 0 | J81: =H81+I81 -> 138504.3 | L81: =SUM(L82:L89) -> 115.017049 | P81: =IF(Q81="PR",J81,SUM(O82:O89)) -> 0 | Q81: OM | R81: =IF(Q81="HS",H81,0) -> 0 | S81: =IF(Q81="HS",I81-P81,0) -> 0 | T81: =IF(Q81="PS",H81,0) -> 0 | U81: =IF(Q81="PS",I81-P81,0) -> 0 | V81: =IF(Q81="MP",H81,0) -> 0 | W81: =IF(Q81="MP",I81-P81,0) -> 0 | X81: =IF(Q81="OM",H81,0) -> 138504.3 | AI81: =SUM(Z82:Z89) -> 0 | AJ81: =SUM(AA82:AA89) -> 0 | AK81: =SUM(AB82:AB89) -> 131704.3
A82: 50 | C82: 592451101VD | D82: Dlažba betonová zámková H tl. 60 mm, přírodní | E82: m2 | F82: 534.29 | G82: 120 | H82: =ROUND(F82*AE82,2) -> 64114.8 | I82: =J82-H82 -> 0 | J82: =ROUND(F82*G82,2) -> 64114.8 | K82: 0.128 | L82: =F82*K82 -> 68.38912 | N82: 0 | O82: =IF(N82="5",I82,0) -> 0 | Z82: =IF(AD82=0,J82,0) -> 0 | AA82: =IF(AD82=14,J82,0) -> 0 | AB82: =IF(AD82=20,J82,0) -> 64114.8 | AD82: 20 | AE82: =G82*1 -> 120 | AF82: =G82*(1-1) -> 0
A83: 51 | C83: 592451014VD | D83: Dlažba betonová zámková slepecká 200x100 tl. 60 mm , červená | E83: m2 | F83: 9.09 | G83: 385 | H83: 3499.65 | I83: 0 | J83: 3499.65 | K83: 0.1365 | L83: 1.240785 | N83: 0 | O83: 0 | Z83: 0 | AA83: 0 | AB83: 3499.65 | AD83: 20 | AE83: 385 | AF83: 0
A84: 52 | C84: 592451013VD | D84: Dlažba betonová zámková slepecká 200x100 tl. 60 mm , přírodní | E84: m2 | F84: 10.1 | G84: 334 | H84: 3373.4 | I84: 0 | J84: 3373.4 | K84: 0.1365 | L84: 1.37865 | N84: 0 | O84: 0 | Z84: 0 | AA84: 0 | AB84: 3373.4 | AD84: 20 | AE84: 334 | AF84: 0
A85: 53 | C85: 592451104VD | D85: Dlažba betonová zámková tl. 80 mm, červená | E85: m2 | F85: 145.44 | G85: 240 | H85: 34905.6 | I85: 0 | J85: 34905.6 | K85: 0.1775 | L85: 25.8156 | N85: 0 | O85: 0 | Z85: 0 | AA85: 0 | AB85: 34905.6 | AD85: 20 | AE85: 240 | AF85: 0
A86: 54 | C86: 592451015VD | D86: Dlažba betonová zámková slepecká 200x100 tl. 80 mm , přírodní | E86: m2 | F86: 18.18 | G86: 400 | H86: 7272 | I86: 0 | J86: 7272 | K86: 0.1833 | L86: 3.332394 | N86: 0 | O86: 0 | Z86: 0 | AA86: 0 | AB86: 7272 | AD86: 20 | AE86: 400 | AF86: 0
A87: 55 | C87: 59217421 | D87: Obrubník chodníkový 14-10 1000/100/250 | E87: kus | F87: 247.45 | G87: 73 | H87: 18063.85 | I87: 0 | J87: 18063.85 | K87: 0.06 | L87: 14.847 | N87: 0 | O87: 0 | Z87: 0 | AA87: 0 | AB87: 18063.85 | AD87: 20 | AE87: 73 | AF87: 0
A88: 56 | C88: 40444927.A | D88: Zrcadlo dopravní kruhové 900 mm | E88: kus | F88: 1 | G88: 6800 | H88: 6800 | I88: 0 | J88: 6800 | K88: 0.0085 | L88: 0.0085 | AE88: 6800 | AF88: 0
A89: 57 | C89: 00572400 | D89: Směs travní parková I. běžná zátěž PROFI | E89: kg | F89: 5 | G89: 95 | H89: 475 | I89: 0 | J89: 475 | K89: 0.001 | L89: 0.005 | N89: 0 | O89: 0 | Z89: 0 | AA89: 0 | AB89: 475 | AD89: 20 | AE89: 95 | AF89: 0
D90: ul. Hájkovická | H90: Celkem: | J90: =J14+J23+J28+J30+J32+J34+J38+J40+J44+J47+J56+J58+J65+J67+J71+J74+J76+J78+J81 -> 705045.95 | Z90: =SUM(Z15:Z89) -> 0 | AA90: =SUM(AA15:AA89) -> 0 | AB90: =SUM(AB15:AB89) -> 674705.95
D93: ul. Družební km 0,212 - km 0,260
C94: 11 | D94: Přípravné a přidružené práce | H94: =SUM(H95:H99) -> 0 | I94: =SUM(I95:I99) -> 4276 | J94: =H94+I94 -> 4276 | L94: =SUM(L95:L99) -> 24.832
A95: 58 | C95: 113106241R00 | D95: Rozebrání ploch ze silničních panelů | E95: m2 | F95: 16 | G95: 36 | H95: =ROUND(F95*AE95,2) -> 0 | I95: =J95-H95 -> 576 | J95: =ROUND(F95*G95,2) -> 576 | K95: 0.408 | L95: =F95*K95 -> 6.528
A96: 59 | C96: 113107123R00 | D96: Odstranění podkladu pl. 200 m2,kam.drcené tl.30 cm | E96: m2 | F96: 28 | G96: 100 | H96: =ROUND(F96*AE96,2) -> 0 | I96: =J96-H96 -> 2800 | J96: =ROUND(F96*G96,2) -> 2800 | K96: 0.4 | L96: =F96*K96 -> 11.2
A97: 60 | C97: 113106121R00 | D97: Rozebrání dlažeb z betonových dlaždic na sucho | E97: m2 | F97: 28 | G97: 15 | H97: =ROUND(F97*AE97,2) -> 0 | I97: =J97-H97 -> 420 | J97: =ROUND(F97*G97,2) -> 420 | K97: 0.138 | L97: =F97*K97 -> 3.864
A98: 61 | C98: 113202111R00 | D98: Vytrhání obrub z krajníků nebo obrubníků stojatých | E98: m | F98: 16 | G98: 20 | H98: =ROUND(F98*AE98,2) -> 0 | I98: =J98-H98 -> 320 | J98: =ROUND(F98*G98,2) -> 320 | K98: 0.145 | L98: =F98*K98 -> 2.32
A99: 62 | C99: 113203111R00 | D99: Vytrhání obrub z dlažebních kostek | E99: m | F99: 8 | G99: 20 | H99: =ROUND(F99*AE99,2) -> 0 | I99: =J99-H99 -> 160 | J99: =ROUND(F99*G99,2) -> 160 | K99: 0.115 | L99: =F99*K99 -> 0.92
C100: 12 | D100: Odkopávky a prokopávky | H100: =SUM(H101:H104) -> 0 | I100: =SUM(I101:I104) -> 7977.5 | J100: =H100+I100 -> 7977.5 | L100: =SUM(L101:L104) -> 0
A101: 63 | C101: 121101101R00 | D101: Sejmutí ornice s přemístěním do 50 m | E101: m3 | F101: 5 | G101: 32 | H101: =ROUND(F101*AE101,2) -> 0 | I101: =J101-H101 -> 160 | J101: =ROUND(F101*G101,2) -> 160 | K101: 0 | L101: =F101*K101 -> 0
A102: 64 | C102: 122201101R00 | D102: Odkopávky nezapažené v hor. 3 do 100 m3 | E102: m3 | F102: 59 | G102: 80 | H102: =ROUND(F102*AE102,2) -> 0 | I102: =J102-H102 -> 4720 | J102: =ROUND(F102*G102,2) -> 4720 | K102: 0 | L102: =F102*K102 -> 0
A103: 65 | C103: 122201109R00 | D103: Příplatek za lepivost - odkopávky v hor. 3 | E103: m3 | F103: 29.5 | G103: 5 | H103: =ROUND(F103*AE103,2) -> 0 | I103: =J103-H103 -> 147.5 | J103: =ROUND(F103*G103,2) -> 147.5 | K103: 0 | L103: =F103*K103 -> 0
A104: 66 | C104: 120001101R00 | D104: Příplatek za ztížení vykopávky v blízkosti vedení | E104: m3 | F104: 11.8 | G104: 250 | H104: =ROUND(F104*AE104,2) -> 0 | I104: =J104-H104 -> 2950 | J104: =ROUND(F104*G104,2) -> 2950 | K104: 0 | L104: =F104*K104 -> 0
C105: 16 | D105: Přemístění výkopku | H105: =SUM(H106:H106) -> 0 | I105: =SUM(I106:I106) -> 9300 | J105: =H105+I105 -> 9300 | L105: =SUM(L106:L106) -> 0
A106: 67 | C106: 162701105R00 | D106: Vodorovné přemístění výkopku z hor.1-4 do 10000 m | E106: m3 | F106: 62 | G106: 150 | H106: =ROUND(F106*AE106,2) -> 0 | I106: =J106-H106 -> 9300 | J106: =ROUND(F106*G106,2) -> 9300 | K106: 0 | L106: =F106*K106 -> 0
C107: 17 | D107: Konstrukce ze zemin | H107: =SUM(H108:H109) -> 0 | I107: =SUM(I108:I109) -> 1920 | J107: =H107+I107 -> 1920 | L107: =SUM(L108:L109) -> 10
A108: 68 | C108: 171201201R00 | D108: Uložení sypaniny na skl.-modelace na výšku přes 2m | E108: m3 | F108: 62 | G108: 10 | H108: =ROUND(F108*AE108,2) -> 0 | I108: =J108-H108 -> 620 | J108: =ROUND(F108*G108,2) -> 620 | K108: 0 | L108: =F108*K108 -> 0
A109: 69 | C109: 171102105R00 | D109: Uložení sypaniny do násypů, zhutn, na 103% PS | E109: m3 | F109: 10 | G109: 130 | H109: =ROUND(F109*AE109,2) -> 0 | I109: =J109-H109 -> 1300 | J109: =ROUND(F109*G109,2) -> 1300 | K109: 1 | L109: =F109*K109 -> 10
C110: 171VD | D110: 17 konstrukce ze zemin | H110: =SUM(H111:H111) -> 0 | I110: =SUM(I111:I111) -> 7440 | J110: =H110+I110 -> 7440 | L110: =SUM(L111:L111) -> 0
A111: 70 | C111: 171201299VD | D111: poplatek za uložení zeminy na skládku | E111: m3 | F111: 62 | G111: 120 | H111: =ROUND(F111*AE111,2) -> 0 | I111: =J111-H111 -> 7440 | J111: =ROUND(F111*G111,2) -> 7440 | K111: 0 | L111: =F111*K111 -> 0
C112: 18 | D112: Povrchové úpravy terénu | H112: =SUM(H113:H115) -> 0 | I112: =SUM(I113:I115) -> 2620 | J112: =H112+I112 -> 2620 | L112: =SUM(L113:L115) -> 0
A113: 71 | C113: 181101102R00 | D113: Úprava pláně v zářezech v hor. 1-4, se zhutněním | E113: m2 | F113: 174 | G113: 10 | H113: =ROUND(F113*AE113,2) -> 0 | I113: =J113-H113 -> 1740 | J113: =ROUND(F113*G113,2) -> 1740 | K113: 0 | L113: =F113*K113 -> 0
A114: 72 | C114: 180402111R00 | D114: Založení trávníku parkového výsevem v rovině | E114: m2 | F114: 20 | G114: 15 | H114: =ROUND(F114*AE114,2) -> 0 | I114: =J114-H114 -> 300 | J114: =ROUND(F114*G114,2) -> 300 | K114: 0 | L114: =F114*K114 -> 0
A115: 73 | C115: 181301101R00 | D115: Rozprostření ornice, rovina, tl. do 10 cm do 500m2 | E115: m2 | F115: 20 | G115: 29 | H115: =ROUND(F115*AE115,2) -> 0 | I115: =J115-H115 -> 580 | J115: =ROUND(F115*G115,2) -> 580 | K115: 0 | L115: =F115*K115 -> 0
C116: 21 | D116: Úprava podloží a základové spáry | H116: =SUM(H117:H117) -> 0 | I116: =SUM(I117:I117) -> 7750 | J116: =H116+I116 -> 7750 | L116: =SUM(L117:L117) -> 13.16
A117: 74 | C117: 212752114R00 | D117: Trativody z drenážních trubek, lože, DN 210 mm | E117: m | F117: 50 | G117: 155 | H117: =ROUND(F117*AE117,2) -> 0 | I117: =J117-H117 -> 7750 | J117: =ROUND(F117*G117,2) -> 7750 | K117: 0.2632 | L117: =F117*K117 -> 13.16
C118: 212VD | D118: 212 - kanalizace | H118: =SUM(H119:H119) -> 0 | I118: =SUM(I119:I119) -> 690 | J118: =H118+I118 -> 690 | L118: =SUM(L119:L119) -> 0
A119: 75 | C119: 212101008VD | D119: Napojení odvodňovacího žlabu do drenáže DN 200 | E119: ks | F119: 2 | G119: 345 | H119: =ROUND(F119*AE119,2) -> 0 | I119: =J119-H119 -> 690 | J119: =ROUND(F119*G119,2) -> 690 | K119: 0 | L119: =F119*K119 -> 0
C120: 56 | D120: Podkladní vrstvy komunikací a zpevněných ploch | H120: =SUM(H121:H121) -> 0 | I120: =SUM(I121:I121) -> 19750 | J120: =H120+I120 -> 19750 | L120: =SUM(L121:L121) -> 72.94228
A121: 76 | C121: 564871111R00 | D121: Podklad ze štěrkodrti po zhutnění tloušťky 25 cm | E121: m2 | F121: 158 | G121: 125 | H121: =ROUND(F121*AE121,2) -> 0 | I121: =J121-H121 -> 19750 | J121: =ROUND(F121*G121,2) -> 19750 | K121: 0.46166 | L121: =F121*K121 -> 72.94228
C122: 59 | D122: Dlažby a předlažby pozemních komunikací a zpevněných ploch | H122: =SUM(H123:H130) -> 0 | I122: =SUM(I123:I130) -> 43208 | J122: =H122+I122 -> 43208 | L122: =SUM(L123:L130) -> 16.1881652
A123: 77 | C123: 596215021R00 | D123: Kladení zámkové dlažby tl. 6 cm do drtě tl. 4 cm | E123: m2 | F123: 124 | G123: 130 | H123: =ROUND(F123*AE123,2) -> 0 | I123: =J123-H123 -> 16120 | J123: =ROUND(F123*G123,2) -> 16120 | K123: 0.0739 | L123: =F123*K123 -> 9.1636
A124: 78 | C124: 596215040R00 | D124: Kladení zámkové dlažby tl. 8 cm do drtě tl. 4 cm | E124: m2 | F124: 50 | G124: 140 | H124: 0 | I124: 7000 | J124: 7000 | K124: 0.0739 | L124: 3.695
A125: 79 | C125: 597101113R00 | D125: Montáž odvodňovacího žlabu - polymerbeton | E125: m | F125: 9 | G125: 400 | H125: 0 | I125: 3600 | J125: 3600 | K125: 0.24147 | L125: 2.17323
A126: 80 | C126: 597091111R00 | D126: Žlab odvodňovací dl. 1000 mm | E126: kus | F126: 8 | G126: 800 | H126: 0 | I126: 6400 | J126: 6400 | K126: 0.09733 | L126: 0.77864
A127: 81 | C127: 597091112R00 | D127: Žlab odvodňovací dl. 500 mm | E127: kus | F127: 2 | G127: 680 | H127: 0 | I127: 1360 | J127: 1360 | K127: 0.05086 | L127: 0.10172
A128: 82 | C128: 597091131R00 | D128: Čelo žlabu plné typ 0-20 | E128: kus | F128: 4 | G128: 58 | H128: 0 | I128: 232 | J128: 232 | K128: 0.00142 | L128: 0.00568
A129: 83 | C129: 597091153R00 | D129: Krycí rošt zatížení C 250 dl.500 mm | E129: kus | F129: 18 | G129: 451.2 | H129: 0 | I129: 8121.6 | J129: 8121.6 | K129: 0.00305 | L129: 0.0549
A130: 84 | C130: 596245041R00 | D130: Kladení zámkové dlažby tl. 8 cm do MC tl. 5 cm | E130: m2 | F130: 1.44 | G130: 260 | H130: 0 | I130: 374.4 | J130: 374.4 | K130: 0.14958 | L130: 0.2153952
C131: 89 | D131: Ostatní konstrukce a práce na trubním vedení | H131: =H132 -> 0 | I131: =I132 -> 3250 | J131: =H131+I131 -> 3250 | L131: =L132 -> 1.5754
A132: 85 | C132: 899431111R00 | D132: Výšková úprava do 20 cm, zvýšení krytu šoupěte | E132: kus | F132: 5 | G132: 650 | H132: =ROUND(F132*AE132,2) -> 0 | I132: =J132-H132 -> 3250 | J132: =ROUND(F132*G132,2) -> 3250 | K132: 0.31508 | L132: 1.5754
C133: 91 | D133: Doplňující konstrukce a práce na pozemních komunikacích a zpevněných plochách | H133: =SUM(H134:H139) -> 0 | I133: =SUM(I134:I139) -> 39620 | J133: =H133+I133 -> 39620 | L133: =SUM(L134:L139) -> 25.9786
A134: 86 | C134: 919735111R00 | D134: Řezání stávajícího živičného krytu tl. do 5 cm | E134: m | F134: 58 | G134: 40 | H134: =ROUND(F134*AE134,2) -> 0 | I134: =J134-H134 -> 2320 | J134: =ROUND(F134*G134,2) -> 2320 | K134: 0 | L134: =F134*K134 -> 0
A135: 87 | C135: 917461111R00 | D135: Osazení stoj.obrubníků, s opěrou, lože z BP 12,5 | E135: m | F135: 64 | G135: 160 | H135: 0 | I135: 10240 | J135: 10240 | K135: 0.1479 | L135: 9.4656
A136: 88 | C136: 916261111R00 | D136: Osazení obruby z kostek drobných, s boční opěrou | E136: m | F136: 64 | G136: 95 | H136: 0 | I136: 6080 | J136: 6080 | K136: 0.0942 | L136: 6.0288
A137: 89 | C137: 917862111R00 | D137: Osazení stojat. obrub. bet. s opěrou,lože z B 12,5 | E137: m | F137: 75 | G137: 160 | H137: 0 | I137: 12000 | J137: 12000 | K137: 0.13612 | L137: 10.209
A138: 90 | C138: 999001032VD | D138: D+M schody ze zámkové dlažby, stupně obruba BO 10/25 | E138: soub | F138: 1 | G138: 4500 | H138: 0 | I138: 4500 | J138: 4500 | K138: 0 | L138: 0
A139: 91 | C139: 919721211R00 | D139: Dilatační spáry vkládané vyplněné asfalt. zálivkou | E139: m | F139: 64 | G139: 70 | H139: 0 | I139: 4480 | J139: 4480 | K139: 0.0043 | L139: 0.2752
C140: 97 | D140: Prorážení otvorů a ostatní bourací práce | H140: =SUM(H141:H143) -> 0 | I140: =SUM(I141:I143) -> 817.6 | J140: =H140+I140 -> 817.6 | L140: =SUM(L141:L143) -> 0
A141: 92 | C141: 979054441R00 | D141: Očištění vybour. dlaždic s výplní kamen. těženým | E141: m2 | F141: 16 | G141: 35 | H141: =ROUND(F141*AE141,2) -> 0 | I141: =J141-H141 -> 560 | J141: =ROUND(F141*G141,2) -> 560 | K141: 0 | L141: =F141*K141 -> 0
A142: 93 | C142: 979024441R00 | D142: Očištění vybour. obrubníků všech loží a výplní | E142: m | F142: 16 | G142: 15 | H142: =ROUND(F142*AE142,2) -> 0 | I142: =J142-H142 -> 240 | J142: =ROUND(F142*G142,2) -> 240 | K142: 0 | L142: =F142*K142 -> 0
A143: 94 | C143: 979071122R00 | D143: Očištění vybour.kostek drobných s výplní MC/živicí | E143: m2 | F143: 0.8 | G143: 22 | H143: =ROUND(F143*AE143,2) -> 0 | I143: =J143-H143 -> 17.6 | J143: =ROUND(F143*G143,2) -> 17.6 | K143: 0 | L143: =F143*K143 -> 0
C144: 979VD | D144: 979 - skládka | H144: =SUM(H145:H145) -> 0 | I144: =SUM(I145:I145) -> 2483 | J144: =H144+I144 -> 2483 | L144: =SUM(L145:L145) -> 0
A145: 95 | C145: 979089998VD | D145: poplatek za uložení suti na skládku | E145: t | F145: 24.83 | G145: 100 | H145: =ROUND(F145*AE145,2) -> 0 | I145: =J145-H145 -> 2483 | J145: =ROUND(F145*G145,2) -> 2483 | K145: 0 | L145: =F145*K145 -> 0
C146: 999VD | D146: 999 - různé | H146: =SUM(H147:H147) -> 0 | I146: =SUM(I147:I147) -> 3680 | J146: =H146+I146 -> 3680 | L146: =SUM(L147:L147) -> 0
A147: 96 | C147: 999001016VD | D147: D+M zábradlí v 1,1 m, vč. souvisejících prací | E147: m | F147: 2.3 | G147: 1600 | H147: =ROUND(F147*AE147,2) -> 0 | I147: =J147-H147 -> 3680 | J147: =ROUND(F147*G147,2) -> 3680 | K147: 0 | L147: =F147*K147 -> 0
C148: H22 | D148: Komunikace pozemní a letiště | H148: =SUM(H149:H149) -> 0 | I148: =SUM(I149:I149) -> 3825.02 | J148: =H148+I148 -> 3825.02 | L148: =SUM(L149:L149) -> 0
A149: 97 | C149: 998223011R00 | D149: Přesun hmot, pozemní komunikace, kryt dlážděný | E149: t | F149: =L107+L116+L120+L122+L131+L133+L153 -> 191.2511182 | G149: 20 | H149: =ROUND(F149*AE149,2) -> 0 | I149: =J149-H149 -> 3825.02 | J149: =ROUND(F149*G149,2) -> 3825.02 | K149: 0 | L149: =F149*K149 -> 0
C150: S | D150: Přesuny sutí | H150: =SUM(H151:H152) -> 0 | I150: =SUM(I151:I152) -> 2929.94 | J150: =H150+I150 -> 2929.94 | L150: =SUM(L151:L152) -> 0
A151: 98 | C151: 979082213R00 | D151: Vodorovná doprava suti po suchu do 1 km | E151: t | F151: 24.83 | G151: 46 | H151: =ROUND(F151*AE151,2) -> 0 | I151: =J151-H151 -> 1142.18 | J151: =ROUND(F151*G151,2) -> 1142.18 | K151: 0 | L151: =F151*K151 -> 0
A152: 99 | C152: 979082219R00 | D152: Příplatek za dopravu suti po suchu za další 1 km | E152: t | F152: 223.47 | G152: 8 | H152: =ROUND(F152*AE152,2) -> 0 | I152: =J152-H152 -> 1787.76 | J152: =ROUND(F152*G152,2) -> 1787.76 | K152: 0 | L152: =F152*K152 -> 0
D153: Ostatní materiál | H153: =SUM(H154:H162) -> 67658.02 | I153: =SUM(I154:I162) -> 0 | J153: =H153+I153 -> 67658.02 | L153: =SUM(L154:L162) -> 51.406673
A154: 100 | C154: 592451101VD | D154: Dlažba betonová zámková tl. 60 mm, přírodní | E154: m2 | F154: 105.04 | G154: 120 | H154: =F154*G154 -> 12604.8 | I154: =J154-H154 -> 0 | J154: =ROUND(F154*G154,2) -> 12604.8 | K154: 0.128 | L154: =F154*K154 -> 13.44512
A155: 101 | C155: 592451014VD | D155: Dlažba betonová zámková slepecká 200x100 tl. 60 mm , červená | E155: m2 | F155: 7.07 | G155: 385 | H155: =F155*G155 -> 2721.95 | I155: 0 | J155: 2721.95 | K155: 0.1365 | L155: 0.965055
A156: 102 | C156: 592451104VD | D156: Dlažba betonová zámková tl. 80 mm, červená | E156: m2 | F156: 44.44 | G156: 334 | H156: 14842.96 | I156: 0 | J156: 14842.96 | K156: 0.1775 | L156: 7.8881
A157: 103 | C157: 592451015VD | D157: Dlažba betonová zámková slepecká 200x100 tl. 80 mm , přírodní | E157: m2 | F157: 6.06 | G157: 240 | H157: 1454.4 | I157: 0 | J157: 1454.4 | K157: 0.1833 | L157: 1.110798
A158: 104 | C158: 59217421 | D158: Obrubník chodníkový 14-10 1000/100/250 | E158: kus | F158: 67.67 | G158: 73 | H158: 4939.91 | I158: 0 | J158: 4939.91 | K158: 0.06 | L158: 4.0602
A159: 105 | C159: 58380211 | D159: Krajník silniční KS 3 13x20x30 až 80 cm | E159: m | F159: 56.56 | G159: 400 | H159: 22624 | I159: 0 | J159: 22624 | K159: 0.065 | L159: 3.6764
A160: 106 | C160: 58380120 | D160: Kostka dlažební drobná 8/10 tř.1 | E160: t | F160: 1.26 | G160: 2500 | H160: 3150 | I160: 0 | J160: =ROUND(F160*G160,2) -> 3150 | K160: 1 | L160: =F160*K160 -> 1.26
A161: 107 | C161: 583419023 | D161: Kamenivo drcené frakce 32/63 B Moravskosl. kraj | E161: t | F161: 19 | G161: 275 | H161: 5225 | I161: 0 | J161: =ROUND(F161*G161,2) -> 5225 | K161: 1 | L161: =F161*K161 -> 19
A162: 108 | C162: 00572400 | D162: Směs travní parková I. běžná zátěž PROFI | E162: kg | F162: 1 | G162: 95 | H162: 95 | I162: 0 | J162: 95 | K162: 0.001 | L162: 0.001
D163: u. Družební km 0,212 - km 0,260 | H163: Celkem: | J163: =J94+J100+J105+J107+J110+J112+J116+J118+J120+J122+J131+J133+J140+J144+J146+J148+J150+J153 -> 229195.08
D166: ul. Družební km 0,260 - km 0,317
C167: 11 | D167: Přípravné a přidružené práce | H167: =SUM(H168:H171) -> 0 | I167: =SUM(I168:I171) -> 10680 | J167: =H167+I167 -> 10680 | L167: =SUM(L168:L171) -> 33.48
A168: 109 | C168: 113107131R00 | D168: Odstranění podkladu pl.200 m2, bet.prostý tl.15 cm | E168: m2 | F168: 21 | G168: 120 | H168: =ROUND(F168*AE168,2) -> 0 | I168: =J168-H168 -> 2520 | J168: =ROUND(F168*G168,2) -> 2520 | K168: 0.225 | L168: =F168*K168 -> 4.725
A169: 110 | C169: 113107141R00 | D169: Odstranění podkladu pl. do 200 m2, živice tl. 5 cm | E169: m2 | F169: 40 | G169: 50 | H169: =ROUND(F169*AE169,2) -> 0 | I169: =J169-H169 -> 2000 | J169: =ROUND(F169*G169,2) -> 2000 | K169: 0.098 | L169: =F169*K169 -> 3.92
A170: 111 | C170: 113107123R00 | D170: Odstranění podkladu pl. 200 m2,kam.drcené tl.30 cm | E170: m2 | F170: 61 | G170: 100 | H170: =ROUND(F170*AE170,2) -> 0 | I170: =J170-H170 -> 6100 | J170: =ROUND(F170*G170,2) -> 6100 | K170: 0.4 | L170: =F170*K170 -> 24.4
A171: 112 | C171: 113202111R00 | D171: Vytrhání obrub z krajníků nebo obrubníků stojatých | E171: m | F171: 3 | G171: 20 | H171: =ROUND(F171*AE171,2) -> 0 | I171: =J171-H171 -> 60 | J171: =ROUND(F171*G171,2) -> 60 | K171: 0.145 | L171: =F171*K171 -> 0.435
C172: 12 | D172: Odkopávky a prokopávky | H172: =SUM(H173:H175) -> 0 | I172: =SUM(I173:I175) -> 7950 | J172: =H172+I172 -> 7950 | L172: =SUM(L173:L175) -> 0
A173: 113 | C173: 122201101R00 | D173: Odkopávky nezapažené v hor. 3 do 100 m3 | E173: m3 | F173: 60 | G173: 80 | H173: =ROUND(F173*AE173,2) -> 0 | I173: =J173-H173 -> 4800 | J173: =ROUND(F173*G173,2) -> 4800 | K173: 0 | L173: =F173*K173 -> 0
A174: 114 | C174: 122201109R00 | D174: Příplatek za lepivost - odkopávky v hor. 3 | E174: m3 | F174: 30 | G174: 5 | H174: =ROUND(F174*AE174,2) -> 0 | I174: =J174-H174 -> 150 | J174: =ROUND(F174*G174,2) -> 150 | K174: 0 | L174: =F174*K174 -> 0
A175: 115 | C175: 120001101R00 | D175: Příplatek za ztížení vykopávky v blízkosti vedení | E175: m3 | F175: 12 | G175: 250 | H175: =ROUND(F175*AE175,2) -> 0 | I175: =J175-H175 -> 3000 | J175: =ROUND(F175*G175,2) -> 3000 | K175: 0 | L175: =F175*K175 -> 0
C176: 16 | D176: Přemístění výkopku | H176: =SUM(H177:H177) -> 0 | I176: =SUM(I177:I177) -> 9000 | J176: =H176+I176 -> 9000 | L176: =SUM(L177:L177) -> 0
A177: 116 | C177: 162701105R00 | D177: Vodorovné přemístění výkopku z hor.1-4 do 10000 m | E177: m3 | F177: 60 | G177: 150 | H177: =ROUND(F177*AE177,2) -> 0 | I177: =J177-H177 -> 9000 | J177: =ROUND(F177*G177,2) -> 9000 | K177: 0 | L177: =F177*K177 -> 0
C178: 17 | D178: Konstrukce ze zemin | H178: =SUM(H179:H179) -> 0 | I178: =SUM(I179:I179) -> 600 | J178: =H178+I178 -> 600 | L178: =SUM(L179:L179) -> 0
A179: 117 | C179: 171201201R00 | D179: Uložení sypaniny na skl.-modelace na výšku přes 2m | E179: m3 | F179: 60 | G179: 10 | H179: =ROUND(F179*AE179,2) -> 0 | I179: =J179-H179 -> 600 | J179: =ROUND(F179*G179,2) -> 600 | K179: 0 | L179: =F179*K179 -> 0
C180: 171VD | D180: 17 konstrukce ze zemin | H180: =SUM(H181:H181) -> 0 | I180: =SUM(I181:I181) -> 7200 | J180: =H180+I180 -> 7200 | L180: =SUM(L181:L181) -> 0
A181: 118 | C181: 171201299VD | D181: poplatek za uložení zeminy na skládku | E181: m3 | F181: 60 | G181: 120 | H181: =ROUND(F181*AE181,2) -> 0 | I181: =J181-H181 -> 7200 | J181: =ROUND(F181*G181,2) -> 7200 | K181: 0 | L181: =F181*K181 -> 0
C182: 18 | D182: Povrchové úpravy terénu | H182: =SUM(H183:H183) -> 0 | I182: =SUM(I183:I183) -> 1690 | J182: =H182+I182 -> 1690 | L182: =SUM(L183:L183) -> 0
A183: 119 | C183: 181101102R00 | D183: Úprava pláně v zářezech v hor. 1-4, se zhutněním | E183: m2 | F183: 169 | G183: 10 | H183: =ROUND(F183*AE183,2) -> 0 | I183: =J183-H183 -> 1690 | J183: =ROUND(F183*G183,2) -> 1690 | K183: 0 | L183: =F183*K183 -> 0
C184: 21 | D184: Úprava podloží a základové spáry | H184: =SUM(H185:H185) -> 0 | I184: =SUM(I185:I185) -> 8835 | J184: =H184+I184 -> 8835 | L184: =SUM(L185:L185) -> 15.0024
A185: 120 | C185: 212752114R00 | D185: Trativody z drenážních trubek, lože, DN 210 mm | E185: m | F185: 57 | G185: 155 | H185: =ROUND(F185*AE185,2) -> 0 | I185: =J185-H185 -> 8835 | J185: =ROUND(F185*G185,2) -> 8835 | K185: 0.2632 | L185: =F185*K185 -> 15.0024
C186: 212VD | D186: 212 - kanalizace | H186: =SUM(H187:H187) -> 0 | I186: =SUM(I187:I187) -> 690 | J186: =H186+I186 -> 690 | L186: =SUM(L187:L187) -> 0
A187: 121 | C187: 212101008VD | D187: Napojení odvodňovacího žlabu do drenáže DN 200 | E187: ks | F187: 2 | G187: 345 | H187: =ROUND(F187*AE187,2) -> 0 | I187: =J187-H187 -> 690 | J187: =ROUND(F187*G187,2) -> 690 | K187: 0 | L187: =F187*K187 -> 0
C188: 56 | D188: Podkladní vrstvy komunikací a zpevněných ploch | H188: =SUM(H189:H189) -> 0 | I188: =SUM(I189:I189) -> 21125 | J188: =H188+I188 -> 21125 | L188: =SUM(L189:L189) -> 78.02054
A189: 122 | C189: 564871111R00 | D189: Podklad ze štěrkodrti po zhutnění tloušťky 25 cm | E189: m2 | F189: 169 | G189: 125 | H189: =ROUND(F189*AE189,2) -> 0 | I189: =J189-H189 -> 21125 | J189: =ROUND(F189*G189,2) -> 21125 | K189: 0.46166 | L189: =F189*K189 -> 78.02054
C190: 59 | D190: Dlažby a předlažby pozemních komunikací a zpevněných ploch | H190: =SUM(H191:H198) -> 0 | I190: =SUM(I191:I198) -> 53388 | J190: =H190+I190 -> 53388 | L190: =SUM(L191:L198) -> 17.6628292
A191: 123 | C191: 596215021R00 | D191: Kladení zámkové dlažby tl. 6 cm do drtě tl. 4 cm | E191: m2 | F191: 108 | G191: 130 | H191: =ROUND(F191*AE191,2) -> 0 | I191: =J191-H191 -> 14040 | J191: =ROUND(F191*G191,2) -> 14040 | K191: 0.0739 | L191: =F191*K191 -> 7.9812
A192: 124 | C192: 596215040R00 | D192: Kladení zámkové dlažby tl. 8 cm do drtě tl. 4 cm | E192: m2 | F192: 61 | G192: 140 | H192: 0 | I192: 8540 | J192: 8540 | K192: 0.0739 | L192: 4.5079
A193: 125 | C193: 597101113R00 | D193: Montáž odvodňovacího žlabu - polymerbeton | E193: m | F193: 14 | G193: 400 | H193: 0 | I193: 5600 | J193: 5600 | K193: 0.24147 | L193: 3.38058
A194: 126 | C194: 597091111R00 | D194: Žlab odvodňovací dl. 1000 mm | E194: kus | F194: 13 | G194: 800 | H194: 0 | I194: 10400 | J194: 10400 | K194: 0.09733 | L194: 1.26529
A195: 127 | C195: 597091112R00 | D195: Žlab odvodňovací dl. 500 mm | E195: kus | F195: 2 | G195: 680 | H195: 0 | I195: 1360 | J195: 1360 | K195: 0.05086 | L195: 0.10172
A196: 128 | C196: 597091131R00 | D196: Čelo žlabu plné typ 0-20 | E196: kus | F196: 4 | G196: 58 | H196: 0 | I196: 232 | J196: 232 | K196: 0.00142 | L196: 0.00568
A197: 129 | C197: 597091153R00 | D197: Krycí rošt zatížení C 250 dl.500 mm | E197: kus | F197: 28 | G197: 451.2 | H197: 0 | I197: 12633.6 | J197: 12633.6 | K197: 0.00305 | L197: 0.0854
A198: 130 | C198: 596245041R00 | D198: Kladení zámkové dlažby tl. 8 cm do MC tl. 5 cm | E198: m2 | F198: 2.24 | G198: 260 | H198: 0 | I198: 582.4 | J198: 582.4 | K198: 0.14958 | L198: 0.3350592
C199: 89 | D199: Ostatní konstrukce a práce na trubním vedení | H199: =H200 -> 0 | I199: =I200 -> 3250 | J199: =H199+I199 -> 3250 | L199: =L200 -> 1.5754
A200: 131 | C200: 899431111R00 | D200: Výšková úprava do 20 cm, zvýšení krytu šoupěte | E200: kus | F200: 5 | G200: 650 | H200: =ROUND(F200*AE200,2) -> 0 | I200: =J200-H200 -> 3250 | J200: =ROUND(F200*G200,2) -> 3250 | K200: 0.31508 | L200: =F200*K200 -> 1.5754
C201: 91 | D201: Doplňující konstrukce a práce na pozemních komunikacích a zpevněných plochách | H201: =SUM(H202:H206) -> 0 | I201: =SUM(I202:I206) -> 31845 | J201: =H201+I201 -> 31845 | L201: =SUM(L202:L206) -> 23.43708
A202: 132 | C202: 919735111R00 | D202: Řezání stávajícího živičného krytu tl. do 5 cm | E202: m | F202: 57 | G202: 40 | H202: =ROUND(F202*AE202,2) -> 0 | I202: =J202-H202 -> 2280 | J202: =ROUND(F202*G202,2) -> 2280 | K202: 0 | L202: =F202*K202 -> 0
A203: 133 | C203: 917461111R00 | D203: Osazení stoj.obrubníků, s opěrou, lože z BP 12,5 | E203: m | F203: 57 | G203: 160 | H203: =ROUND(F203*AE203,2) -> 0 | I203: =J203-H203 -> 9120 | J203: =ROUND(F203*G203,2) -> 9120 | K203: 0.1479 | L203: =F203*K203 -> 8.4303
A204: 134 | C204: 916261111R00 | D204: Osazení obruby z kostek drobných, s boční opěrou | E204: m | F204: 57 | G204: 95 | H204: =ROUND(F204*AE204,2) -> 0 | I204: =J204-H204 -> 5415 | J204: =ROUND(F204*G204,2) -> 5415 | K204: 0.0942 | L204: =F204*K204 -> 5.3694
A205: 135 | C205: 917862111R00 | D205: Osazení stojat. obrub. bet. s opěrou,lože z B 12,5 | E205: m | F205: 69 | G205: 160 | H205: =ROUND(F205*AE205,2) -> 0 | I205: =J205-H205 -> 11040 | J205: =ROUND(F205*G205,2) -> 11040 | K205: 0.13612 | L205: =F205*K205 -> 9.39228
A206: 136 | C206: 919721211R00 | D206: Dilatační spáry vkládané vyplněné asfalt. zálivkou | E206: m | F206: 57 | G206: 70 | H206: =ROUND(F206*AE206,2) -> 0 | I206: =J206-H206 -> 3990 | J206: =ROUND(F206*G206,2) -> 3990 | K206: 0.0043 | L206: =F206*K206 -> 0.2451
C207: 979VD | D207: 979 - skládka | H207: =SUM(H208:H209) -> 0 | I207: =SUM(I208:I209) -> 3446 | J207: =H207+I207 -> 3446 | L207: =SUM(L208:L209) -> 0
A208: 137 | C208: 979089998VD | D208: poplatek za uložení suti na skládku | E208: t | F208: 29.56 | G208: 100 | H208: =ROUND(F208*AE208,2) -> 0 | I208: =J208-H208 -> 2956 | J208: =ROUND(F208*G208,2) -> 2956 | K208: 0 | L208: =F208*K208 -> 0
A209: 138 | C209: 979089999VD | D209: Poplatek za uložení živice na skládku | E209: t | F209: 3.92 | G209: 125 | H209: =ROUND(F209*AE209,2) -> 0 | I209: =J209-H209 -> 490 | J209: =ROUND(F209*G209,2) -> 490 | K209: 0 | L209: =F209*K209 -> 0
... 31 more rows

Sheet Stavební rozpočet - součet
A1: Stavební rozpočet - rekapitulace
A2: Název stavby: | B2: Cyklostezka W Krásné Pole | D2: Objednatel:
A4: Druh stavby: | D4: Projektant:
A6: Lokalita: | B6: úsek Nová kolonie - Zauliční | D6: Zhotovitel:
A8: Zpracoval: | D8: Zpracováno dne: | E8: 2013-01-21
A10: Objekt | B10: Kód | C10: Zkrácený popis | D10: Náklady (Kč) - dodávka | E10: Náklady (Kč) - Montáž | F10: Náklady (Kč) - celkem | G10: Celková hmotnost (t)
B11: Ul. Hájkovická
B12: 11 | C12: Přípravné a přidružené práce | D12: ='Stavební rozpočet'!H14 -> 0 | E12: ='Stavební rozpočet'!I14 -> 81815 | F12: =D12+E12 -> 81815 | G12: ='Stavební rozpočet'!L14 -> 183.201 | H12: F | I12: =IF(H12="T",0,F12) -> 81815
B13: 12 | C13: Odkopávky a prokopávky | D13: ='Stavební rozpočet'!H23 -> 0 | E13: ='Stavební rozpočet'!I23 -> 14072.5 | F13: 14072.5 | G13: ='Stavební rozpočet'!L23 -> 0 | H13: F | I13: 14072.5
B14: 16 | C14: Přemístění výkopku | D14: ='Stavební rozpočet'!H28 -> 0 | E14: ='Stavební rozpočet'!I28 -> 14700 | F14: 14700 | G14: ='Stavební rozpočet'!L28 -> 0 | H14: F | I14: 14700
B15: 17 | C15: Konstrukce ze zemin | D15: ='Stavební rozpočet'!H30 -> 0 | E15: ='Stavební rozpočet'!I30 -> 980 | F15: 980 | G15: ='Stavební rozpočet'!L30 -> 0 | H15: F | I15: 980
B16: 171VD | C16: 17 konstrukce ze zemin | D16: ='Stavební rozpočet'!H32 -> 0 | E16: ='Stavební rozpočet'!I32 -> 11760 | F16: 11760 | G16: ='Stavební rozpočet'!L32 -> 0 | H16: F | I16: 11760
B17: 18 | C17: Povrchové úpravy terénu | D17: ='Stavební rozpočet'!H34 -> 161.77 | E17: ='Stavební rozpočet'!I34 -> 12578.23 | F17: 12740 | G17: ='Stavební rozpočet'!L34 -> 0 | H17: F | I17: 12740
B18: 21 | C18: Úprava podloží a základové spáry | D18: ='Stavební rozpočet'!H38 -> 23935.16 | E18: ='Stavební rozpočet'!I38 -> 5514.84 | F18: 29450 | G18: ='Stavební rozpočet'!L38 -> 50.008 | H18: F | I18: 29450
B19: 212VD | C19: 212 - kanalizace | D19: ='Stavební rozpočet'!H40 -> 1393.94 | E19: ='Stavební rozpočet'!I40 -> 28786.06 | F19: 30180 | G19: ='Stavební rozpočet'!L40 -> 0 | H19: F | I19: 30180
B20: 56 | C20: Podkladní vrstvy komunikací a zpevněných ploch | D20: ='Stavební rozpočet'!H44 -> 43134.29 | E20: ='Stavební rozpočet'!I44 -> 9240.71 | F20: 52375 | G20: ='Stavební rozpočet'!L44 -> 189.00682 | H20: F | I20: 52375
B21: 59 | C21: Dlažby a předlažby pozemních komunikací a zpevněných ploch | D21: ='Stavební rozpočet'!H47 -> 95183.1 | E21: ='Stavební rozpočet'!I47 -> 101120.9 | F21: 196304 | G21: ='Stavební rozpočet'!L47 -> 71.3983232 | H21: F | I21: 196304
B22: 89 | C22: Ostatní konstrukce a práce na trubním vedení | D22: ='Stavební rozpočet'!H56 -> 0 | E22: ='Stavební rozpočet'!I56 -> 9750 | F22: =D22+E22 -> 9750 | G22: ='Stavební rozpočet'!L56 -> 4.7262
B23: 91 | C23: Doplňující konstrukce a práce na pozemních komunikacích a zpevněných plochách | D23: ='Stavební rozpočet'!H58 -> 31295.97 | E23: ='Stavební rozpočet'!I58 -> 15284.03 | F23: 46580 | G23: ='Stavební rozpočet'!L58 -> 39.49354 | H23: F | I23: 46580
B24: 966 | C24: Ostatních stavebních konstrukcí | D24: ='Stavební rozpočet'!H65 -> 0 | E24: ='Stavební rozpočet'!I65 -> 3800 | F24: 3800 | G24: ='Stavební rozpočet'!L65 -> 0 | H24: F | I24: 3800
B25: 97 | C25: Prorážení otvorů a ostatní bourací práce | D25: ='Stavební rozpočet'!H67 -> 0 | E25: ='Stavební rozpočet'!I67 -> 1785.8 | F25: 1785.8 | G25: ='Stavební rozpočet'!L67 -> 0 | H25: F | I25: 1785.8
B26: 979VD | C26: 979 - skládka | D26: ='Stavební rozpočet'!H71 -> 0 | E26: ='Stavební rozpočet'!I71 -> 21238.75 | F26: 21238.75 | G26: ='Stavební rozpočet'!L71 -> 0 | H26: F | I26: 21238.75
B27: 999VD | C27: 999 - různé | D27: ='Stavební rozpočet'!H74 -> 0 | E27: ='Stavební rozpočet'!I74 -> 8000 | F27: 8000 | G27: ='Stavební rozpočet'!L74 -> 0 | H27: F | I27: 8000
B28: H22 | C28: Komunikace pozemní a letiště | D28: ='Stavební rozpočet'!H76 -> 0 | E28: ='Stavební rozpočet'!I76 -> 9393 | F28: 9393 | G28: ='Stavební rozpočet'!L76 -> 0 | H28: F | I28: 9393
B29: S | C29: Přesuny sutí | D29: ='Stavební rozpočet'!H78 -> 0 | E29: ='Stavební rozpočet'!I78 -> 21617.6 | F29: 21617.6 | G29: ='Stavební rozpočet'!L78 -> 0 | H29: F | I29: 21617.6
C30: Ostatní materiál | D30: ='Stavební rozpočet'!H81 -> 138504.3 | E30: ='Stavební rozpočet'!I81 -> 0 | F30: 138504.3 | G30: ='Stavební rozpočet'!L81 -> 115.017049 | H30: F | I30: 138504.3
K31: =E27 -> 8000
E32: Celkem: | F32: =SUM(F12:F31) -> 705045.95 | K32: =SUM(E12:E25) -> 311188.07
B34: ul. Družební km 0,212 - km 0,260
B35: 11 | C35: Přípravné a přidružené práce | D35: ='Stavební rozpočet'!H94 -> 0 | E35: ='Stavební rozpočet'!I94 -> 4276 | F35: =D35+E35 -> 4276 | G35: ='Stavební rozpočet'!L94 -> 24.832
B36: 12 | C36: Odkopávky a prokopávky | D36: ='Stavební rozpočet'!H100 -> 0 | E36: ='Stavební rozpočet'!I100 -> 7977.5 | F36: 7977.5 | G36: ='Stavební rozpočet'!L100 -> 0
B37: 16 | C37: Přemístění výkopku | D37: ='Stavební rozpočet'!H105 -> 0 | E37: ='Stavební rozpočet'!I105 -> 9300 | F37: 9300 | G37: ='Stavební rozpočet'!L105 -> 0
B38: 17 | C38: Konstrukce ze zemin | D38: ='Stavební rozpočet'!H107 -> 0 | E38: ='Stavební rozpočet'!I107 -> 1920 | F38: 1920 | G38: ='Stavební rozpočet'!L107 -> 10
B39: 171VD | C39: 17 konstrukce ze zemin | D39: ='Stavební rozpočet'!H110 -> 0 | E39: ='Stavební rozpočet'!I110 -> 7440 | F39: 7440 | G39: ='Stavební rozpočet'!L110 -> 0
B40: 18 | C40: Povrchové úpravy terénu | D40: ='Stavební rozpočet'!H112 -> 0 | E40: ='Stavební rozpočet'!I112 -> 2620 | F40: 2620 | G40: ='Stavební rozpočet'!L112 -> 0
B41: 21 | C41: Úprava podloží a základové spáry | D41: ='Stavební rozpočet'!H116 -> 0 | E41: ='Stavební rozpočet'!I116 -> 7750 | F41: 7750 | G41: ='Stavební rozpočet'!L116 -> 13.16
B42: 212VD | C42: 212 - kanalizace | D42: ='Stavební rozpočet'!H118 -> 0 | E42: ='Stavební rozpočet'!I118 -> 690 | F42: 690 | G42: ='Stavební rozpočet'!L118 -> 0
B43: 56 | C43: Podkladní vrstvy komunikací a zpevněných ploch | D43: ='Stavební rozpočet'!H120 -> 0 | E43: ='Stavební rozpočet'!I120 -> 19750 | F43: 19750 | G43: ='Stavební rozpočet'!L120 -> 72.94228
B44: 59 | C44: Dlažby a předlažby pozemních komunikací a zpevněných ploch | D44: ='Stavební rozpočet'!H122 -> 0 | E44: ='Stavební rozpočet'!I122 -> 43208 | F44: 43208 | G44: ='Stavební rozpočet'!L122 -> 16.1881652
B45: 89 | C45: Ostatní konstrukce a práce na trubním vedení | D45: ='Stavební rozpočet'!H131 -> 0 | E45: ='Stavební rozpočet'!I131 -> 3250 | F45: 3250 | G45: ='Stavební rozpočet'!L131 -> 1.5754
B46: 91 | C46: Doplňující konstrukce a práce na pozemních komunikacích a zpevněných plochách | D46: ='Stavební rozpočet'!H133 -> 0 | E46: ='Stavební rozpočet'!I133 -> 39620 | F46: 39620 | G46: ='Stavební rozpočet'!L133 -> 25.9786
B47: 97 | C47: Prorážení otvorů a ostatní bourací práce | D47: ='Stavební rozpočet'!H140 -> 0 | E47: ='Stavební rozpočet'!I140 -> 817.6 | F47: 817.6 | G47: ='Stavební rozpočet'!L140 -> 0
B48: 979VD | C48: 979 - skládka | D48: ='Stavební rozpočet'!H144 -> 0 | E48: ='Stavební rozpočet'!I144 -> 2483 | F48: 2483 | G48: ='Stavební rozpočet'!L144 -> 0
B49: 999VD | C49: 999 - různé | D49: ='Stavební rozpočet'!H146 -> 0 | E49: ='Stavební rozpočet'!I146 -> 3680 | F49: 3680 | G49: ='Stavební rozpočet'!L146 -> 0
B50: H22 | C50: Komunikace pozemní a letiště | D50: ='Stavební rozpočet'!H148 -> 0 | E50: ='Stavební rozpočet'!I148 -> 3825.02 | F50: 3825.02 | G50: ='Stavební rozpočet'!L148 -> 0
B51: S | C51: Přesuny sutí | D51: ='Stavební rozpočet'!H150 -> 0 | E51: ='Stavební rozpočet'!I150 -> 2929.94 | F51: 2929.94 | G51: ='Stavební rozpočet'!L150 -> 0 | K51: =SUM(E35:E47) -> 148619.1
C52: Ostatní materiál | D52: ='Stavební rozpočet'!H153 -> 67658.02 | E52: ='Stavební rozpočet'!I153 -> 0 | F52: 67658.02 | G52: ='Stavební rozpočet'!L153 -> 51.406673 | K52: =E49 -> 3680
E54: Celkem: | F54: =SUM(F35:F53) -> 229195.08
B56: ul. Družební km 0,260 - km 0,317
B57: 11 | C57: Přípravné a přidružené práce | D57: ='Stavební rozpočet'!H167 -> 0 | E57: ='Stavební rozpočet'!I167 -> 10680 | F57: =D57+E57 -> 10680 | G57: ='Stavební rozpočet'!L167 -> 33.48
B58: 12 | C58: Odkopávky a prokopávky | D58: ='Stavební rozpočet'!H172 -> 0 | E58: ='Stavební rozpočet'!I172 -> 7950 | F58: 7950 | G58: ='Stavební rozpočet'!L172 -> 0
B59: 16 | C59: Přemístění výkopku | D59: ='Stavební rozpočet'!H176 -> 0 | E59: ='Stavební rozpočet'!I176 -> 9000 | F59: 9000 | G59: ='Stavební rozpočet'!L176 -> 0
B60: 17 | C60: Konstrukce ze zemin | D60: ='Stavební rozpočet'!H178 -> 0 | E60: ='Stavební rozpočet'!I178 -> 600 | F60: 600 | G60: ='Stavební rozpočet'!L178 -> 0
B61: 171VD | C61: 17 konstrukce ze zemin | D61: ='Stavební rozpočet'!H180 -> 0 | E61: ='Stavební rozpočet'!I180 -> 7200 | F61: 7200 | G61: ='Stavební rozpočet'!L180 -> 0
B62: 18 | C62: Povrchové úpravy terénu | D62: ='Stavební rozpočet'!H182 -> 0 | E62: ='Stavební rozpočet'!I182 -> 1690 | F62: 1690 | G62: ='Stavební rozpočet'!L182 -> 0
B63: 21 | C63: Úprava podloží a základové spáry | D63: ='Stavební rozpočet'!H184 -> 0 | E63: ='Stavební rozpočet'!I184 -> 8835 | F63: 8835 | G63: ='Stavební rozpočet'!L184 -> 15.0024
B64: 212VD | C64: 212 - kanalizace | D64: ='Stavební rozpočet'!H186 -> 0 | E64: ='Stavební rozpočet'!I186 -> 690 | F64: 690 | G64: ='Stavební rozpočet'!L186 -> 0
B65: 56 | C65: Podkladní vrstvy komunikací a zpevněných ploch | D65: ='Stavební rozpočet'!H188 -> 0 | E65: ='Stavební rozpočet'!I188 -> 21125 | F65: 21125 | G65: ='Stavební rozpočet'!L188 -> 78.02054
B66: 59 | C66: Dlažby a předlažby pozemních komunikací a zpevněných ploch | D66: ='Stavební rozpočet'!H190 -> 0 | E66: ='Stavební rozpočet'!I190 -> 53388 | F66: 53388 | G66: ='Stavební rozpočet'!L190 -> 17.6628292
B67: 89 | C67: Ostatní konstrukce a práce na trubním vedení | D67: ='Stavební rozpočet'!H199 -> 0 | E67: ='Stavební rozpočet'!I199 -> 3250 | F67: 3250 | G67: ='Stavební rozpočet'!L199 -> 1.5754
B68: 91 | C68: Doplňující konstrukce a práce na pozemních komunikacích a zpevněných plochách | D68: ='Stavební rozpočet'!H201 -> 0 | E68: ='Stavební rozpočet'!I201 -> 31845 | F68: 31845 | G68: ='Stavební rozpočet'!L201 -> 23.43708
B69: 979VD | C69: 979 - skládka | D69: ='Stavební rozpočet'!H207 -> 0 | E69: ='Stavební rozpočet'!I207 -> 3446 | F69: 3446 | G69: ='Stavební rozpočet'!L207 -> 0
B70: H22 | C70: Komunikace pozemní a letiště | D70: ='Stavební rozpočet'!H210 -> 0 | E70: ='Stavební rozpočet'!I210 -> 3365.93 | F70: 3365.93 | G70: ='Stavební rozpočet'!L210 -> 0
B71: S | C71: Přesuny sutí | D71: ='Stavební rozpočet'!H212 -> 0 | E71: ='Stavební rozpočet'!I212 -> 3950.64 | F71: 3950.64 | G71: ='Stavební rozpočet'!L212 -> 0 | K71: =SUM(E57:E68) -> 156253
C72: Ostatní materiál | D72: ='Stavební rozpočet'!H215 -> 61722.36 | E72: ='Stavební rozpočet'!I215 -> 0 | F72: 61722.36 | G72: ='Stavební rozpočet'!L215 -> 34.173883
E74: Celkem: | F74: =SUM(F57:F73) -> 228737.93
B77: Společné položky
B78: 11 | C78: Přípravné a přidružené práce | D78: ='Stavební rozpočet'!H228 -> 0 | E78: ='Stavební rozpočet'!I228 -> 39497 | F78: =D78+E78 -> 39497 | G78: ='Stavební rozpočet'!L228 -> 2.9509 | K78: =E78 -> 39497
E80: Celkem: | F80: =SUM(F78:F79) -> 39497
B83: Celkový součet | F83: =F80+F74+F54+F32 -> 1202475.96

Sheet Krycí list rozpočtu
A1: Krycí list rozpočtu
A2: Název stavby: | C2: Cyklostezka W Krásné Pole | E2: Objednatel: | H2: IČ/DIČ:
A4: Druh stavby: | E4: Projektant: | H4: IČ/DIČ:
A6: Lokalita: | C6: úsek Nová kolonie - Zauliční | E6: Zhotovitel: | H6: IČ/DIČ:
A8: Začátek výstavby: | E8: Konec výstavby: | H8: Položek: | I8: 162
A10: JKSO: | E10: Zpracoval: | H10: Datum:
A12: Rozpočtové náklady v Kč
A13: A | B13: Základní rozpočtové náklady | D13: B | E13: Doplňkové náklady | G13: C | H13: Náklady na umístění stavby (NUS)
A14: HSV | B14: Dodávky | C14: ='Stavební rozpočet - součet'!D17+'Stavební rozpočet - součet'!D18+'Stavební rozpočet - součet'!D19+'Stavební rozpočet - součet'!D20+'Stavební rozpočet - součet'!D21+'Stavební rozpočet - součet'!D23 -> 195104.23 | D14: Práce přesčas | F14: 0 | G14: Zařízení staveniště | I14: =C22*0.5% -> 6012.3798
B15: Montáž | C15: ='Stavební rozpočet - součet'!K31+'Stavební rozpočet - součet'!K32+'Stavební rozpočet - součet'!K51+'Stavební rozpočet - součet'!K52+'Stavební rozpočet - součet'!K71+'Stavební rozpočet - součet'!K78 -> 667237.17 | D15: Bez pevné podl. | F15: 0 | G15: Mimostav. doprava | I15: 0
A16: PSV | B16: Dodávky | C16: =SUM('Stavební rozpočet'!T14:T89) -> 0 | D16: Kulturní památka | F16: 0 | G16: Územní vlivy | I16: 0
B17: Montáž | C17: =SUM('Stavební rozpočet'!U14:U89) -> 0 | G17: Provozní vlivy | I17: 0
A18: "M" | B18: Dodávky | C18: =SUM('Stavební rozpočet'!V14:V89) -> 0 | G18: Ostatní | I18: =C22*0.01% -> 120.247596
B19: Montáž | C19: =SUM('Stavební rozpočet'!W14:W89) -> 0 | G19: NUS z rozpočtu | I19: 0
A20: Ostatní materiál | C20: ='Stavební rozpočet - součet'!D30+'Stavební rozpočet - součet'!D52+'Stavební rozpočet - součet'!D72 -> 267884.68
A21: Přesun hmot a sutí | C21: ='Stavební rozpočet - součet'!F26+'Stavební rozpočet - součet'!F28+'Stavební rozpočet - součet'!F29+'Stavební rozpočet - součet'!F48+'Stavební rozpočet - součet'!F50+'Stavební rozpočet - součet'!F51+'Stavební rozpočet - součet'!F69+'Stavební rozpočet - součet'!F70+'Stavební rozpočet - součet'!F71 -> 72249.88
A22: ZRN celkem | C22: =SUM(C14:C21) -> 1202475.96 | D22: DN celkem | F22: =SUM(F14:F21) -> 0 | G22: NUS celkem | I22: =SUM(I14:I21) -> 6132.627396
A24: Základ 0% | C24: =SUM('Stavební rozpočet'!Z14:Z89) -> 0
A25: Základ 14% | C25: =SUM('Stavební rozpočet'!AA14:AA89) -> 0 | D25: DPH 14% | F25: =ROUND(C25*(14/100),2) -> 0 | G25: Celkem bez DPH | I25: =C22+I22 -> 1208608.587
A26: Základ 21% | C26: =I25 -> 1208608.587 | D26: DPH 21% | F26: =ROUND(C26*(21/100),2) -> 253807.8 | G26: Celkem včetně DPH | I26: =SUM(F25:F26)+I25 -> 1462416.387
A28: Projektant | D28: Objednatel | G28: Zhotovitel
A32: Datum, razítko a podpis | D32: Datum, razítko a podpis | G32: Datum, razítko a podpis
